'DEPARTMENT_FAMILY,ENTITY,PAYMENT_DATE,EXPENSE_TYPE,EXPENSE_AREA,SUPPLIER,TRANSACTION_NUMBER, AMOUNT ,DESCRIPTION
Ministry of Justice,LEGAL AID AGENCY,07/01/2016,223000-Other Expenditure,VA094-Head of Legal,GOVERNMENT LEGAL DEPARTMENT,10037,"182,000.00 ",Legal Advisory Services
Ministry of Justice,LEGAL AID AGENCY,12/01/2016,512000-Intangible GBV - Additions,VA403-IDP - Infrastructure,TRUEPENNY PEOPLE UK LTD,15050,"54,387.90 ",Client and Cost Management system implementation costs
Ministry of Justice,LEGAL AID AGENCY,12/01/2016,512000-Intangible GBV - Additions,VA403-IDP - Infrastructure,TRUEPENNY PEOPLE UK LTD,15051,"71,003.40 ",Client and Cost Management system implementation costs
Ministry of Justice,LEGAL AID AGENCY,18/01/2016,221000-Property Rent and Rates,VA396-Property Costs,KNIGHT FRANK CLIENT TRUST,15052,"26,265.00 ",Rental charge
Ministry of Justice,LEGAL AID AGENCY,18/01/2016,221000-Property Rent and Rates,VA396-Property Costs,KNIGHT FRANK CLIENT TRUST,15052,"26,175.00 ",Rental charge
Ministry of Justice,LEGAL AID AGENCY,18/01/2016,222002-Other Property Costs,VA396-Property Costs,KNIGHT FRANK CLIENT TRUST,15052,"13,964.38 ",Service Charge
Ministry of Justice,LEGAL AID AGENCY,18/01/2016,222002-Other Property Costs,VA396-Property Costs,KNIGHT FRANK CLIENT TRUST,15052,"13,889.80 ",Service Charge
Ministry of Justice,LEGAL AID AGENCY,06/01/2016,222002-Other Property Costs,VA396-Property Costs,WORKMAN LLP,2003899,"24,718.50 ",Property Costs
Ministry of Justice,LEGAL AID AGENCY,06/01/2016,222002-Other Property Costs,VA396-Property Costs,WORKMAN LLP,2003899,"8,741.20 ",Property Costs
Ministry of Justice,LEGAL AID AGENCY,13/01/2016,222002-Other Property Costs,VA396-Property Costs,JONES LANG LASALLE LTD,2003944,"51,764.11 ",Property Costs
Ministry of Justice,LEGAL AID AGENCY,13/01/2016,512000-Intangible GBV - Additions,VA294-ISD,REDCENTRIC SOLUTIONS LTD,2003956,"42,491.40 ",Redcentric Agile Implementation
Ministry of Justice,LEGAL AID AGENCY,15/01/2016,223000-Other Expenditure,VA094-Head of Legal,HODGE JONES & ALLEN LLP,2003986,"33,936.80 ",Legal-Counsel's Fees (Advice)
Ministry of Justice,LEGAL AID AGENCY,20/01/2016,265000-IT & Telecommunications,VA294-ISD,REDCENTRIC SOLUTIONS LTD,2004036,"52,828.12 ",RedCentric BAU Monthly
Ministry of Justice,LEGAL AID AGENCY,27/01/2016,265000-IT & Telecommunications,VA294-ISD,EVERYTHING EVERYWHERE LTD,2004073,"82,725.02 ",IT Equipment
MINISTRY OF JUSTICE,LEGAL AID AGENCY,06/01/2016,Crime Higher,LEGAL AID FUND,MICHAEL TURNER QC,884166:142772309,"26,327.68 ",Legal Aid Payment Crime Higher
MINISTRY OF JUSTICE,LEGAL AID AGENCY,06/01/2016,Civil Representation,LEGAL AID FUND,MAITLAND-WALKER,884210:142755150,"262,715.05 ",Legal Aid Payment Civil Representation
MINISTRY OF JUSTICE,LEGAL AID AGENCY,06/01/2016,Crime Higher,LEGAL AID FUND,ADRIAN C AMER,884226:142764517,"30,522.14 ",Legal Aid Payment Crime Higher
MINISTRY OF JUSTICE,LEGAL AID AGENCY,06/01/2016,Civil Representation,LEGAL AID FUND,GRAHAM E KEAN,884305:142770897,"45,835.20 ",Legal Aid Payment Civil Representation
MINISTRY OF JUSTICE,LEGAL AID AGENCY,06/01/2016,Civil Representation,LEGAL AID FUND,JULIA F TOWNEND,884320:142770227,"30,000.00 ",Legal Aid Payment Civil Representation
MINISTRY OF JUSTICE,LEGAL AID AGENCY,06/01/2016,Crime Higher,LEGAL AID FUND,BERNARD CHILL & AXTELL-ADVOCATE,884336:142763513,"30,522.14 ",Legal Aid Payment Crime Higher
MINISTRY OF JUSTICE,LEGAL AID AGENCY,06/01/2016,Crime Higher,LEGAL AID FUND,JFH LAW-ADVOCATE,884338:142763435,"34,672.20 ",Legal Aid Payment Crime Higher
MINISTRY OF JUSTICE,LEGAL AID AGENCY,06/01/2016,Crime Higher,LEGAL AID FUND,MELDRUM SOLICITORS LLP [ADVOCATE],884359:142763631,"30,522.14 ",Legal Aid Payment Crime Higher
MINISTRY OF JUSTICE,LEGAL AID AGENCY,06/01/2016,Civil Representation,LEGAL AID FUND,RAMSDENS SOLICITORS LLP,884394:142719055,"25,330.98 ",Legal Aid Payment Civil Representation
MINISTRY OF JUSTICE,LEGAL AID AGENCY,06/01/2016,Civil Representation,LEGAL AID FUND,SALLY C BRADLEY,884459:142770222,"30,000.00 ",Legal Aid Payment Civil Representation
MINISTRY OF JUSTICE,LEGAL AID AGENCY,06/01/2016,Crime Higher,LEGAL AID FUND,NADINE RADFORD QC,884494:142725278,"54,601.76 ",Legal Aid Payment Crime Higher
MINISTRY OF JUSTICE,LEGAL AID AGENCY,06/01/2016,Civil Representation,LEGAL AID FUND,SUSAN C CAMPBELL QC,884514:142707772,"28,658.24 ",Legal Aid Payment Civil Representation
MINISTRY OF JUSTICE,LEGAL AID AGENCY,06/01/2016,Crime Higher,LEGAL AID FUND,J KIRSTY BRIMELOW,884525:142764106,"50,059.28 ",Legal Aid Payment Crime Higher
MINISTRY OF JUSTICE,LEGAL AID AGENCY,06/01/2016,Civil Representation,LEGAL AID FUND,PETER ROTHERY,884719:142770747,"32,254.20 ",Legal Aid Payment Civil Representation
MINISTRY OF JUSTICE,LEGAL AID AGENCY,06/01/2016,Crime Higher,LEGAL AID FUND,S ORLANDO F POWNALL QC,884721:142763738,"31,127.71 ",Legal Aid Payment Crime Higher
MINISTRY OF JUSTICE,LEGAL AID AGENCY,06/01/2016,Crime Higher,LEGAL AID FUND,JONATHAN J LAIDLAW,884723:142763906,"27,210.91 ",Legal Aid Payment Crime Higher
MINISTRY OF JUSTICE,LEGAL AID AGENCY,06/01/2016,Civil Representation,LEGAL AID FUND,RUTH S M HENKE QC,884734:142589600,"40,010.40 ",Legal Aid Payment Civil Representation
MINISTRY OF JUSTICE,LEGAL AID AGENCY,06/01/2016,Civil Representation,LEGAL AID FUND,MELANIE J JOHNSON,884854:142589675,"29,430.00 ",Legal Aid Payment Civil Representation
MINISTRY OF JUSTICE,LEGAL AID AGENCY,06/01/2016,Crime Higher,LEGAL AID FUND,FRANCESCA LEVETT,884939:142734186,"51,707.33 ",Legal Aid Payment Crime Higher
MINISTRY OF JUSTICE,LEGAL AID AGENCY,06/01/2016,Crime Higher,LEGAL AID FUND,JOEL N BENNATHAN QC,885050:142725720,"51,376.51 ",Legal Aid Payment Crime Higher
MINISTRY OF JUSTICE,LEGAL AID AGENCY,06/01/2016,Crime Higher,LEGAL AID FUND,ZMS LEGAL LTD TA ZMS SOLICITORS,885081:142764443,"49,729.07 ",Legal Aid Payment Crime Higher
MINISTRY OF JUSTICE,LEGAL AID AGENCY,06/01/2016,Crime Higher,LEGAL AID FUND,HSR SOLICITORS,885113:142715294,"47,376.30 ",Legal Aid Payment Crime Higher
MINISTRY OF JUSTICE,LEGAL AID AGENCY,06/01/2016,Crime Lower,LEGAL AID FUND,SWITALSKI'S LTD,885122:142756109,"26,433.54 ",Legal Aid Payment Crime Lower
MINISTRY OF JUSTICE,LEGAL AID AGENCY,06/01/2016,Crime Higher,LEGAL AID FUND,CITY LAW CHAMBERS,885135:142714586,"37,966.66 ",Legal Aid Payment Crime Higher
MINISTRY OF JUSTICE,LEGAL AID AGENCY,06/01/2016,Crime Higher,LEGAL AID FUND,SVS SOLICITORS,885137:142714472,"48,417.64 ",Legal Aid Payment Crime Higher
MINISTRY OF JUSTICE,LEGAL AID AGENCY,06/01/2016,Crime Higher,LEGAL AID FUND,GEOFF WHITE & CO,885158:142724434,"31,355.04 ",Legal Aid Payment Crime Higher
MINISTRY OF JUSTICE,LEGAL AID AGENCY,06/01/2016,Crime Higher,LEGAL AID FUND,DASS SOLICITORS,885170:142715676,"61,453.00 ",Legal Aid Payment Crime Higher
MINISTRY OF JUSTICE,LEGAL AID AGENCY,06/01/2016,Crime Higher,LEGAL AID FUND,BSB SOLICITORS,885215:142714703,"26,956.58 ",Legal Aid Payment Crime Higher
MINISTRY OF JUSTICE,LEGAL AID AGENCY,06/01/2016,Crime Higher,LEGAL AID FUND,CARTWRIGHT KING SOLICITORS,885252:142724514,"37,296.80 ",Legal Aid Payment Crime Higher
MINISTRY OF JUSTICE,LEGAL AID AGENCY,06/01/2016,Crime Higher,LEGAL AID FUND,FORBES SOLICITORS,885313:142715021,"29,664.55 ",Legal Aid Payment Crime Higher
MINISTRY OF JUSTICE,LEGAL AID AGENCY,06/01/2016,Crime Higher,LEGAL AID FUND,SJ LAW SOLICITORS,885323:142734572,"65,912.89 ",Legal Aid Payment Crime Higher
MINISTRY OF JUSTICE,LEGAL AID AGENCY,06/01/2016,Crime Higher,LEGAL AID FUND,REEDS SOLICITORS LTD,885361:142763860,"44,479.24 ",Legal Aid Payment Crime Higher
MINISTRY OF JUSTICE,LEGAL AID AGENCY,06/01/2016,Crime Higher,LEGAL AID FUND,TRANTERS CRIMINAL LAW PRACTICE,885362:142466718,"-40,387.66 ",Legal Aid Payment Crime Higher
MINISTRY OF JUSTICE,LEGAL AID AGENCY,06/01/2016,Crime Lower,LEGAL AID FUND,TRANTERS CRIMINAL LAW PRACTICE,885362:142676535,"26,700.00 ",Legal Aid Payment Crime Lower
MINISTRY OF JUSTICE,LEGAL AID AGENCY,06/01/2016,Crime Higher,LEGAL AID FUND,S SATHA & CO LTD,885397:142724917,"64,330.40 ",Legal Aid Payment Crime Higher
MINISTRY OF JUSTICE,LEGAL AID AGENCY,06/01/2016,Crime Higher,LEGAL AID FUND,HASAN SOLICITORS,885398:142714506,"29,002.13 ",Legal Aid Payment Crime Higher
MINISTRY OF JUSTICE,LEGAL AID AGENCY,06/01/2016,Crime Higher,LEGAL AID FUND,JOSEPH HILL & CO,885440:142764966,"74,237.93 ",Legal Aid Payment Crime Higher
MINISTRY OF JUSTICE,LEGAL AID AGENCY,06/01/2016,Crime Higher,LEGAL AID FUND,R P ROBINSON,885447:142715243,"33,554.50 ",Legal Aid Payment Crime Higher
MINISTRY OF JUSTICE,LEGAL AID AGENCY,06/01/2016,Crime Higher,LEGAL AID FUND,GOODALL BARNETT JAMES SOLICITORS,885464:142764429,"37,089.47 ",Legal Aid Payment Crime Higher
MINISTRY OF JUSTICE,LEGAL AID AGENCY,06/01/2016,Crime Higher,LEGAL AID FUND,JANES SOLICITORS,885514:142763655,"29,884.85 ",Legal Aid Payment Crime Higher
MINISTRY OF JUSTICE,LEGAL AID AGENCY,06/01/2016,Crime Higher,LEGAL AID FUND,CHRIS CLARK,885518:142724305,"35,832.21 ",Legal Aid Payment Crime Higher
MINISTRY OF JUSTICE,LEGAL AID AGENCY,06/01/2016,Civil Representation,LEGAL AID FUND,BOWERMANS,885528:142664929,"25,840.52 ",Legal Aid Payment Civil Representation
MINISTRY OF JUSTICE,LEGAL AID AGENCY,06/01/2016,Crime Higher,LEGAL AID FUND,LEWIS NEDAS & CO,885635:142724313,"89,975.11 ",Legal Aid Payment Crime Higher
MINISTRY OF JUSTICE,LEGAL AID AGENCY,06/01/2016,Crime Higher,LEGAL AID FUND,LEWIS NEDAS & CO,885635:142764469,"52,704.13 ",Legal Aid Payment Crime Higher
MINISTRY OF JUSTICE,LEGAL AID AGENCY,06/01/2016,Crime Higher,LEGAL AID FUND,PHILLIP M HAYCOCK,885642:142714608,"72,157.76 ",Legal Aid Payment Crime Higher
MINISTRY OF JUSTICE,LEGAL AID AGENCY,06/01/2016,Civil Representation,LEGAL AID FUND,MAGGIE E JONES,885769:142720350,"28,722.60 ",Legal Aid Payment Civil Representation
MINISTRY OF JUSTICE,LEGAL AID AGENCY,06/01/2016,Civil Representation,LEGAL AID FUND,STEPHEN KNAFLER QC,885776:142720447,"48,397.50 ",Legal Aid Payment Civil Representation
MINISTRY OF JUSTICE,LEGAL AID AGENCY,06/01/2016,Crime Higher,LEGAL AID FUND,KIERAN P VAUGHAN,885779:142714814,"63,300.05 ",Legal Aid Payment Crime Higher
MINISTRY OF JUSTICE,LEGAL AID AGENCY,06/01/2016,Civil Representation,LEGAL AID FUND,JANE DE ZONIE,885792:142707760,"25,855.20 ",Legal Aid Payment Civil Representation
MINISTRY OF JUSTICE,LEGAL AID AGENCY,06/01/2016,Crime Higher,LEGAL AID FUND,PIERS G R NORSWORTHY,885799:142734765,"37,152.42 ",Legal Aid Payment Crime Higher
MINISTRY OF JUSTICE,LEGAL AID AGENCY,06/01/2016,Crime Higher,LEGAL AID FUND,G T STEWART SOLICITORS-ADVOCATE,885998:142716026,"27,794.54 ",Legal Aid Payment Crime Higher
MINISTRY OF JUSTICE,LEGAL AID AGENCY,06/01/2016,Crime Higher,LEGAL AID FUND,ADAM VAITILINGAM,886032:142764361,"53,959.81 ",Legal Aid Payment Crime Higher
MINISTRY OF JUSTICE,LEGAL AID AGENCY,06/01/2016,Crime Higher,LEGAL AID FUND,ADAM VAITILINGAM,886032:142764600,"25,981.14 ",Legal Aid Payment Crime Higher
MINISTRY OF JUSTICE,LEGAL AID AGENCY,06/01/2016,Civil Representation,LEGAL AID FUND,MARK WHITEHALL,886051:142617642,"32,329.80 ",Legal Aid Payment Civil Representation
MINISTRY OF JUSTICE,LEGAL AID AGENCY,06/01/2016,Civil Representation,LEGAL AID FUND,RIMA BARUAH,886058:142719797,"65,993.40 ",Legal Aid Payment Civil Representation
MINISTRY OF JUSTICE,LEGAL AID AGENCY,06/01/2016,Crime Higher,LEGAL AID FUND,LEON KAZAKOS,886141:142733999,"-30,106.98 ",Legal Aid Payment Crime Higher
MINISTRY OF JUSTICE,LEGAL AID AGENCY,06/01/2016,Crime Higher,LEGAL AID FUND,MOHAMMED A QAZI,886166:142724920,"38,995.20 ",Legal Aid Payment Crime Higher
MINISTRY OF JUSTICE,LEGAL AID AGENCY,06/01/2016,Crime Higher,LEGAL AID FUND,SEAN F HAMMOND,886246:142721040,"50,982.01 ",Legal Aid Payment Crime Higher
MINISTRY OF JUSTICE,LEGAL AID AGENCY,06/01/2016,Civil Representation,LEGAL AID FUND,DAVID P A ROWLANDS,886270:142719281,"27,241.24 ",Legal Aid Payment Civil Representation
MINISTRY OF JUSTICE,LEGAL AID AGENCY,06/01/2016,Crime Higher,LEGAL AID FUND,ALEXIA POWER,886326:142734639,"31,528.52 ",Legal Aid Payment Crime Higher
MINISTRY OF JUSTICE,LEGAL AID AGENCY,06/01/2016,Crime Higher,LEGAL AID FUND,ASHRAF KHAN,886329:142721789,"27,816.42 ",Legal Aid Payment Crime Higher
MINISTRY OF JUSTICE,LEGAL AID AGENCY,06/01/2016,Crime Higher,LEGAL AID FUND,MARTIN RUTHERFORD,886343:142724456,"32,590.86 ",Legal Aid Payment Crime Higher
MINISTRY OF JUSTICE,LEGAL AID AGENCY,06/01/2016,Crime Higher,LEGAL AID FUND,NARITA BAHRA,886526:142764110,"28,161.04 ",Legal Aid Payment Crime Higher
MINISTRY OF JUSTICE,LEGAL AID AGENCY,06/01/2016,Crime Higher,LEGAL AID FUND,ALI N BAJWA QC,886544:142763725,"28,437.10 ",Legal Aid Payment Crime Higher
MINISTRY OF JUSTICE,LEGAL AID AGENCY,06/01/2016,Crime Higher,LEGAL AID FUND,WESSEX SOLICITORS CHAMBERS,886619:142724317,"72,888.04 ",Legal Aid Payment Crime Higher
MINISTRY OF JUSTICE,LEGAL AID AGENCY,06/01/2016,Crime Higher,LEGAL AID FUND,JFH LAW,886636:142724290,"73,622.57 ",Legal Aid Payment Crime Higher
MINISTRY OF JUSTICE,LEGAL AID AGENCY,06/01/2016,Crime Higher,LEGAL AID FUND,HOWARD BERNSTEIN SOLICITORS,886647:142724579,"48,029.78 ",Legal Aid Payment Crime Higher
MINISTRY OF JUSTICE,LEGAL AID AGENCY,06/01/2016,Crime Higher,LEGAL AID FUND,HARRIS SOLICITORS,886650:142715576,"89,975.11 ",Legal Aid Payment Crime Higher
MINISTRY OF JUSTICE,LEGAL AID AGENCY,06/01/2016,Crime Higher,LEGAL AID FUND,HUSSEIN SOLICITORS,886653:142714906,"63,226.73 ",Legal Aid Payment Crime Higher
MINISTRY OF JUSTICE,LEGAL AID AGENCY,06/01/2016,Crime Higher,LEGAL AID FUND,ARMSTRONG SOLICITORS,886685:142714687,"30,936.92 ",Legal Aid Payment Crime Higher
MINISTRY OF JUSTICE,LEGAL AID AGENCY,06/01/2016,Crime Higher,LEGAL AID FUND,ABBEY SOLICITORS,886697:142763529,"69,913.45 ",Legal Aid Payment Crime Higher
MINISTRY OF JUSTICE,LEGAL AID AGENCY,06/01/2016,Crime Higher,LEGAL AID FUND,WOODS SOLICITORS,886732:142724319,"70,649.58 ",Legal Aid Payment Crime Higher
MINISTRY OF JUSTICE,LEGAL AID AGENCY,06/01/2016,Crime Higher,LEGAL AID FUND,G T STEWART SOLICITORS,886734:142715648,"32,329.98 ",Legal Aid Payment Crime Higher
MINISTRY OF JUSTICE,LEGAL AID AGENCY,06/01/2016,Civil Representation,LEGAL AID FUND,MAKIN DIXON SOLICITORS LTD,886767:142756816,"26,909.15 ",Legal Aid Payment Civil Representation
MINISTRY OF JUSTICE,LEGAL AID AGENCY,06/01/2016,Civil Representation,LEGAL AID FUND,MAKIN DIXON SOLICITORS LTD,886767:142756817,"-26,689.70 ",Legal Aid Payment Civil Representation
MINISTRY OF JUSTICE,LEGAL AID AGENCY,06/01/2016,Crime Higher,LEGAL AID FUND,HOGAN BROWN SOLICITORS,886773:142763443,"71,397.19 ",Legal Aid Payment Crime Higher
MINISTRY OF JUSTICE,LEGAL AID AGENCY,06/01/2016,Crime Higher,LEGAL AID FUND,HOGAN BROWN SOLICITORS,886773:142763482,"38,433.73 ",Legal Aid Payment Crime Higher
MINISTRY OF JUSTICE,LEGAL AID AGENCY,06/01/2016,Crime Lower,LEGAL AID FUND,O'GARRA'S SOLICITORS,886791:142756136,"38,445.42 ",Legal Aid Payment Crime Lower
MINISTRY OF JUSTICE,LEGAL AID AGENCY,06/01/2016,Crime Higher,LEGAL AID FUND,NEEDHAM POULIER LTD,886864:142715254,"37,602.02 ",Legal Aid Payment Crime Higher
MINISTRY OF JUSTICE,LEGAL AID AGENCY,06/01/2016,Civil Representation,LEGAL AID FUND,DUNCAN LEWIS,886869:3000000415780006,"28,805.38 ",Legal Aid Payment Civil Representation
MINISTRY OF JUSTICE,LEGAL AID AGENCY,06/01/2016,Crime Higher,LEGAL AID FUND,THE JOHNSON PARTNERSHIP,886963:142763162,"55,275.36 ",Legal Aid Payment Crime Higher
MINISTRY OF JUSTICE,LEGAL AID AGENCY,06/01/2016,Crime Higher,LEGAL AID FUND,TUCKERS SOLICITORS LLP,886974:142715419,"37,791.76 ",Legal Aid Payment Crime Higher
MINISTRY OF JUSTICE,LEGAL AID AGENCY,06/01/2016,Crime Higher,LEGAL AID FUND,BARK & CO,886985:142715888,"30,841.33 ",Legal Aid Payment Crime Higher
MINISTRY OF JUSTICE,LEGAL AID AGENCY,06/01/2016,Crime Lower,LEGAL AID FUND,WATSON WOODHOUSE SOLICITORS LLP,887058:142770233,"29,500.00 ",Legal Aid Payment Crime Lower
MINISTRY OF JUSTICE,LEGAL AID AGENCY,06/01/2016,Crime Higher,LEGAL AID FUND,QUALITYSOLICITORS HPJV,887134:142724220,"29,664.55 ",Legal Aid Payment Crime Higher
MINISTRY OF JUSTICE,LEGAL AID AGENCY,06/01/2016,Crime Higher,LEGAL AID FUND,FELLOWES LLP,887171:142724315,"81,347.36 ",Legal Aid Payment Crime Higher
MINISTRY OF JUSTICE,LEGAL AID AGENCY,06/01/2016,Crime Higher,LEGAL AID FUND,WANNOPS LLP,887178:142715441,"47,605.83 ",Legal Aid Payment Crime Higher
MINISTRY OF JUSTICE,LEGAL AID AGENCY,06/01/2016,Crime Higher,LEGAL AID FUND,EDWARD FAIL BRADSHAW & WATERSON,887191:142715062,"76,931.04 ",Legal Aid Payment Crime Higher
MINISTRY OF JUSTICE,LEGAL AID AGENCY,06/01/2016,Crime Higher,LEGAL AID FUND,BLASER MILLS,887200:142715689,"32,228.12 ",Legal Aid Payment Crime Higher
MINISTRY OF JUSTICE,LEGAL AID AGENCY,06/01/2016,Civil Representation,LEGAL AID FUND,MORRIS SUTHERLAND,887226:142755243,"35,977.85 ",Legal Aid Payment Civil Representation
MINISTRY OF JUSTICE,LEGAL AID AGENCY,06/01/2016,Crime Higher,LEGAL AID FUND,"GAMMON,PIERCY & GAIGER",887228:142715591,"42,369.21 ",Legal Aid Payment Crime Higher
MINISTRY OF JUSTICE,LEGAL AID AGENCY,06/01/2016,Crime Lower,LEGAL AID FUND,BERRY & LAMBERTS SOLICITORS,887242:142770236,"28,300.00 ",Legal Aid Payment Crime Lower
MINISTRY OF JUSTICE,LEGAL AID AGENCY,13/01/2016,Crime Higher,LEGAL AID FUND,J D SPICER ZEB,887398:142805660,"46,915.77 ",Legal Aid Payment Crime Higher
MINISTRY OF JUSTICE,LEGAL AID AGENCY,13/01/2016,Crime Higher,LEGAL AID FUND,CATHERINE COLLINS,887402:142846920,"46,294.26 ",Legal Aid Payment Crime Higher
MINISTRY OF JUSTICE,LEGAL AID AGENCY,13/01/2016,Crime Higher,LEGAL AID FUND,DAVID H T JEREMY QC,887533:142840349,"41,939.83 ",Legal Aid Payment Crime Higher
MINISTRY OF JUSTICE,LEGAL AID AGENCY,13/01/2016,Crime Higher,LEGAL AID FUND,SHAFI SOLICITORS LLP,887626:142818458,"61,289.04 ",Legal Aid Payment Crime Higher
MINISTRY OF JUSTICE,LEGAL AID AGENCY,13/01/2016,Crime Higher,LEGAL AID FUND,SALLY J DAULTON,887710:142794144,"34,122.11 ",Legal Aid Payment Crime Higher
MINISTRY OF JUSTICE,LEGAL AID AGENCY,13/01/2016,Crime Higher,LEGAL AID FUND,WANNOP FOX STAFFURTH & BRAY [ADVOCATE],887791:142839045,"29,959.34 ",Legal Aid Payment Crime Higher
MINISTRY OF JUSTICE,LEGAL AID AGENCY,13/01/2016,Crime Higher,LEGAL AID FUND,KATHRYN RAFTER,887850:142792746,"32,929.61 ",Legal Aid Payment Crime Higher
MINISTRY OF JUSTICE,LEGAL AID AGENCY,13/01/2016,Crime Higher,LEGAL AID FUND,SARAH J V MALLETT,887854:142778612,"42,287.99 ",Legal Aid Payment Crime Higher
MINISTRY OF JUSTICE,LEGAL AID AGENCY,13/01/2016,Crime Higher,LEGAL AID FUND,ANN C MULLIGAN,887903:142820026,"42,246.96 ",Legal Aid Payment Crime Higher
MINISTRY OF JUSTICE,LEGAL AID AGENCY,13/01/2016,Civil Representation,LEGAL AID FUND,MARGO C BOYE-ANAWOMA,888142:142810736,"37,548.00 ",Legal Aid Payment Civil Representation
MINISTRY OF JUSTICE,LEGAL AID AGENCY,13/01/2016,Civil Representation,LEGAL AID FUND,JANET V MITCHELL,888182:142785829,"26,055.72 ",Legal Aid Payment Civil Representation
MINISTRY OF JUSTICE,LEGAL AID AGENCY,13/01/2016,Civil Representation,LEGAL AID FUND,H JONATHAN FURNESS QC,888206:142771961,"62,783.80 ",Legal Aid Payment Civil Representation
MINISTRY OF JUSTICE,LEGAL AID AGENCY,13/01/2016,Civil Representation,LEGAL AID FUND,H JONATHAN FURNESS QC,888206:142798395,"-35,934.20 ",Legal Aid Payment Civil Representation
MINISTRY OF JUSTICE,LEGAL AID AGENCY,13/01/2016,Crime Higher,LEGAL AID FUND,SANDIP PATEL QC,888369:142820239,"61,199.94 ",Legal Aid Payment Crime Higher
MINISTRY OF JUSTICE,LEGAL AID AGENCY,13/01/2016,Crime Higher,LEGAL AID FUND,HARRY W BAKER,888376:142806650,"31,806.00 ",Legal Aid Payment Crime Higher
MINISTRY OF JUSTICE,LEGAL AID AGENCY,13/01/2016,Crime Higher,LEGAL AID FUND,STEPHEN M A KAMLISH QC,888490:142805364,"30,311.74 ",Legal Aid Payment Crime Higher
MINISTRY OF JUSTICE,LEGAL AID AGENCY,13/01/2016,Crime Higher,LEGAL AID FUND,EMMA C AKUWUDIKE,888493:142806929,"33,483.14 ",Legal Aid Payment Crime Higher
MINISTRY OF JUSTICE,LEGAL AID AGENCY,13/01/2016,Crime Higher,LEGAL AID FUND,ROBERT SALLIS,888517:142794151,"27,087.60 ",Legal Aid Payment Crime Higher
MINISTRY OF JUSTICE,LEGAL AID AGENCY,13/01/2016,Crime Higher,LEGAL AID FUND,WELLS BURCOMBE LLP,888593:142820393,"41,054.20 ",Legal Aid Payment Crime Higher
MINISTRY OF JUSTICE,LEGAL AID AGENCY,13/01/2016,Crime Higher,LEGAL AID FUND,FORTIS ROSE SOLICITORS LTD,888613:142840785,"100,223.80 ",Legal Aid Payment Crime Higher
MINISTRY OF JUSTICE,LEGAL AID AGENCY,13/01/2016,Crime Higher,LEGAL AID FUND,M K LAW SOLICITORS LTD,888616:142840504,"105,857.75 ",Legal Aid Payment Crime Higher
MINISTRY OF JUSTICE,LEGAL AID AGENCY,13/01/2016,Civil Representation,LEGAL AID FUND,CARTWRIGHT KING SOLICITORS,888678:142773463,"27,000.00 ",Legal Aid Payment Civil Representation
MINISTRY OF JUSTICE,LEGAL AID AGENCY,13/01/2016,Crime Higher,LEGAL AID FUND,MARY MONSON SOLICITORS,888758:142792756,"30,489.47 ",Legal Aid Payment Crime Higher
MINISTRY OF JUSTICE,LEGAL AID AGENCY,13/01/2016,Crime Higher,LEGAL AID FUND,DPP LAW LTD,888763:142792673,"38,671.96 ",Legal Aid Payment Crime Higher
MINISTRY OF JUSTICE,LEGAL AID AGENCY,13/01/2016,Crime Higher,LEGAL AID FUND,LLOYDS PR SOLICITORS,888819:142777149,"35,651.62 ",Legal Aid Payment Crime Higher
MINISTRY OF JUSTICE,LEGAL AID AGENCY,13/01/2016,Crime Higher,LEGAL AID FUND,WAINWRIGHT & CUMMINS LLP,888847:142794049,"26,859.58 ",Legal Aid Payment Crime Higher
MINISTRY OF JUSTICE,LEGAL AID AGENCY,13/01/2016,Crime Higher,LEGAL AID FUND,MANN & CO SOLICITORS,888873:142806311,"29,002.13 ",Legal Aid Payment Crime Higher
MINISTRY OF JUSTICE,LEGAL AID AGENCY,13/01/2016,Crime Higher,LEGAL AID FUND,CHIVERS SOLICITORS,888874:142777117,"29,204.52 ",Legal Aid Payment Crime Higher
MINISTRY OF JUSTICE,LEGAL AID AGENCY,13/01/2016,Crime Higher,LEGAL AID FUND,FARADAYS SOLICITORS LTD,888894:142840472,"107,574.07 ",Legal Aid Payment Crime Higher
MINISTRY OF JUSTICE,LEGAL AID AGENCY,13/01/2016,Crime Higher,LEGAL AID FUND,STEPHEN BURDON SOLICITORS,888963:142838972,"25,955.76 ",Legal Aid Payment Crime Higher
MINISTRY OF JUSTICE,LEGAL AID AGENCY,13/01/2016,Crime Higher,LEGAL AID FUND,THE JOHNSON PARTNERSHIP,889016:142840633,"49,908.24 ",Legal Aid Payment Crime Higher
MINISTRY OF JUSTICE,LEGAL AID AGENCY,13/01/2016,Civil Representation,LEGAL AID FUND,KNOWLES BENNING LLP,889031:142844206,"35,045.82 ",Legal Aid Payment Civil Representation
MINISTRY OF JUSTICE,LEGAL AID AGENCY,13/01/2016,Civil Representation,LEGAL AID FUND,RUDLINGS & WAKELAM,889057:142845177,"33,580.46 ",Legal Aid Payment Civil Representation
MINISTRY OF JUSTICE,LEGAL AID AGENCY,13/01/2016,Civil Representation,LEGAL AID FUND,RUDLINGS & WAKELAM,889057:142845182,"-29,692.04 ",Legal Aid Payment Civil Representation
MINISTRY OF JUSTICE,LEGAL AID AGENCY,13/01/2016,Civil Representation,LEGAL AID FUND,SWITALSKI'S LTD,889066:142812545,"62,636.04 ",Legal Aid Payment Civil Representation
MINISTRY OF JUSTICE,LEGAL AID AGENCY,13/01/2016,Crime Higher,LEGAL AID FUND,IRWIN MITCHELL LLP,889108:142811369,"63,872.52 ",Legal Aid Payment Crime Higher
MINISTRY OF JUSTICE,LEGAL AID AGENCY,13/01/2016,Crime Higher,LEGAL AID FUND,JOSEPH HILL & CO,889116:142840276,"80,645.47 ",Legal Aid Payment Crime Higher
MINISTRY OF JUSTICE,LEGAL AID AGENCY,13/01/2016,Crime Higher,LEGAL AID FUND,LAWRENCE & CO,889117:142840282,"105,857.75 ",Legal Aid Payment Crime Higher
MINISTRY OF JUSTICE,LEGAL AID AGENCY,13/01/2016,Civil Representation,LEGAL AID FUND,BLACKHURST BUDD LTD,889231:142784116,"25,058.95 ",Legal Aid Payment Civil Representation
MINISTRY OF JUSTICE,LEGAL AID AGENCY,13/01/2016,Crime Higher,LEGAL AID FUND,WALKERS SOLICITORS LIMITED,889240:142805690,"25,897.98 ",Legal Aid Payment Crime Higher
MINISTRY OF JUSTICE,LEGAL AID AGENCY,13/01/2016,Crime Higher,LEGAL AID FUND,JANES SOLICITORS,889247:142846077,"105,786.58 ",Legal Aid Payment Crime Higher
MINISTRY OF JUSTICE,LEGAL AID AGENCY,13/01/2016,Crime Higher,LEGAL AID FUND,B H MOHAMMED,889257:142840421,"60,117.16 ",Legal Aid Payment Crime Higher
MINISTRY OF JUSTICE,LEGAL AID AGENCY,13/01/2016,Civil Representation,LEGAL AID FUND,ANTHONY COLLINS LLP,889318:142783377,"29,406.48 ",Legal Aid Payment Civil Representation
MINISTRY OF JUSTICE,LEGAL AID AGENCY,13/01/2016,Civil Representation,LEGAL AID FUND,ATKINS HOPE SOLICITORS LIMITED,889371:142809471,"34,799.39 ",Legal Aid Payment Civil Representation
MINISTRY OF JUSTICE,LEGAL AID AGENCY,13/01/2016,Civil Representation,LEGAL AID FUND,HUDGELL & PARTNERS,889395:142812784,"25,113.89 ",Legal Aid Payment Civil Representation
MINISTRY OF JUSTICE,LEGAL AID AGENCY,13/01/2016,Crime Higher,LEGAL AID FUND,DARBYS SOLICITORS LLP,889406:142778245,"29,633.18 ",Legal Aid Payment Crime Higher
MINISTRY OF JUSTICE,LEGAL AID AGENCY,13/01/2016,Civil Representation,LEGAL AID FUND,DUTTON GREGORY LLP,889422:142799448,"36,954.71 ",Legal Aid Payment Civil Representation
MINISTRY OF JUSTICE,LEGAL AID AGENCY,13/01/2016,Crime Higher,LEGAL AID FUND,FREEMANS SOLICITORS.,889440:142840290,"64,330.40 ",Legal Aid Payment Crime Higher
MINISTRY OF JUSTICE,LEGAL AID AGENCY,13/01/2016,Crime Higher,LEGAL AID FUND,RICHARD J PADLEY,889490:142833184,"43,248.00 ",Legal Aid Payment Crime Higher
MINISTRY OF JUSTICE,LEGAL AID AGENCY,13/01/2016,Crime Higher,LEGAL AID FUND,LISA M WILDING,889640:142820325,"61,199.94 ",Legal Aid Payment Crime Higher
MINISTRY OF JUSTICE,LEGAL AID AGENCY,13/01/2016,Crime Higher,LEGAL AID FUND,EDWARD J A HENRY,889660:142839559,"35,690.40 ",Legal Aid Payment Crime Higher
MINISTRY OF JUSTICE,LEGAL AID AGENCY,13/01/2016,Crime Higher,LEGAL AID FUND,DAVID B JOSSE QC,889663:142777613,"27,292.34 ",Legal Aid Payment Crime Higher
MINISTRY OF JUSTICE,LEGAL AID AGENCY,13/01/2016,Crime Higher,LEGAL AID FUND,STEPHEN M J A SMYTH,889694:142840456,"29,959.34 ",Legal Aid Payment Crime Higher
MINISTRY OF JUSTICE,LEGAL AID AGENCY,13/01/2016,Crime Higher,LEGAL AID FUND,TAYLOR STREET SOLICITORS LLP-ADVOCATE,889883:142839063,"25,887.07 ",Legal Aid Payment Crime Higher
MINISTRY OF JUSTICE,LEGAL AID AGENCY,13/01/2016,Civil Representation,LEGAL AID FUND,DAVID PHILLIPS,889895:142809468,"39,094.68 ",Legal Aid Payment Civil Representation
MINISTRY OF JUSTICE,LEGAL AID AGENCY,13/01/2016,Crime Higher,LEGAL AID FUND,HASAN SOLICITORS [ADVOCATE],889987:142778334,"29,620.80 ",Legal Aid Payment Crime Higher
MINISTRY OF JUSTICE,LEGAL AID AGENCY,13/01/2016,Civil Representation,LEGAL AID FUND,GINA ALLWOOD,890035:142812781,"31,924.80 ",Legal Aid Payment Civil Representation
MINISTRY OF JUSTICE,LEGAL AID AGENCY,13/01/2016,Civil Representation,LEGAL AID FUND,JACQUELINE L THOMAS,890046:3000000731460020,"27,313.63 ",Legal Aid Payment Civil Representation
MINISTRY OF JUSTICE,LEGAL AID AGENCY,13/01/2016,Crime Higher,LEGAL AID FUND,BETH CROCKER,890053:142839101,"26,682.74 ",Legal Aid Payment Crime Higher
MINISTRY OF JUSTICE,LEGAL AID AGENCY,13/01/2016,Civil Representation,LEGAL AID FUND,CHRIS MITROPOULOS,890077:142429593,"32,254.20 ",Legal Aid Payment Civil Representation
MINISTRY OF JUSTICE,LEGAL AID AGENCY,13/01/2016,Crime Higher,LEGAL AID FUND,LAUREN B SOERTSZ,890120:142839112,"40,344.41 ",Legal Aid Payment Crime Higher
MINISTRY OF JUSTICE,LEGAL AID AGENCY,13/01/2016,Crime Higher,LEGAL AID FUND,KEVIN I TOOMEY,890137:142820406,"33,437.28 ",Legal Aid Payment Crime Higher
MINISTRY OF JUSTICE,LEGAL AID AGENCY,13/01/2016,Civil Representation,LEGAL AID FUND,JOHN A HAYES QC,890299:142577382,"41,666.40 ",Legal Aid Payment Civil Representation
MINISTRY OF JUSTICE,LEGAL AID AGENCY,13/01/2016,Civil Representation,LEGAL AID FUND,JOHN A HAYES QC,890299:142592276,"-43,911.72 ",Legal Aid Payment Civil Representation
MINISTRY OF JUSTICE,LEGAL AID AGENCY,13/01/2016,Civil Representation,LEGAL AID FUND,JOHN A HAYES QC,890299:3000000582320006,"41,820.30 ",Legal Aid Payment Civil Representation
MINISTRY OF JUSTICE,LEGAL AID AGENCY,13/01/2016,Civil Representation,LEGAL AID FUND,DAISY HUGHES,890378:142263020,"-37,089.64 ",Legal Aid Payment Civil Representation
MINISTRY OF JUSTICE,LEGAL AID AGENCY,13/01/2016,Civil Representation,LEGAL AID FUND,DAISY HUGHES,890378:142833486,"45,338.93 ",Legal Aid Payment Civil Representation
MINISTRY OF JUSTICE,LEGAL AID AGENCY,13/01/2016,Crime Higher,LEGAL AID FUND,CRAIG L HARRIS,890396:142820309,"31,001.58 ",Legal Aid Payment Crime Higher
MINISTRY OF JUSTICE,LEGAL AID AGENCY,13/01/2016,Crime Higher,LEGAL AID FUND,GORDON HARRISON,890415:142805838,"31,266.72 ",Legal Aid Payment Crime Higher
MINISTRY OF JUSTICE,LEGAL AID AGENCY,13/01/2016,Crime Higher,LEGAL AID FUND,STEPHEN W LESLIE QC,890450:142801489,"104,627.71 ",Legal Aid Payment Crime Higher
MINISTRY OF JUSTICE,LEGAL AID AGENCY,13/01/2016,Crime Higher,LEGAL AID FUND,GILES F COCKINGS,890453:142778610,"35,101.98 ",Legal Aid Payment Crime Higher
MINISTRY OF JUSTICE,LEGAL AID AGENCY,13/01/2016,Civil Representation,LEGAL AID FUND,LUCINDA WICKS,890463:142812809,"35,316.00 ",Legal Aid Payment Civil Representation
MINISTRY OF JUSTICE,LEGAL AID AGENCY,13/01/2016,Crime Higher,LEGAL AID FUND,TREVOR B SIDDLE,890485:142778491,"32,459.58 ",Legal Aid Payment Crime Higher
MINISTRY OF JUSTICE,LEGAL AID AGENCY,13/01/2016,Crime Higher,LEGAL AID FUND,JULIA E SMART,890504:142778582,"35,101.98 ",Legal Aid Payment Crime Higher
MINISTRY OF JUSTICE,LEGAL AID AGENCY,13/01/2016,Crime Higher,LEGAL AID FUND,RAQUEL SIMPSON,890525:142777260,"33,883.13 ",Legal Aid Payment Crime Higher
MINISTRY OF JUSTICE,LEGAL AID AGENCY,13/01/2016,Crime Higher,LEGAL AID FUND,MICHAEL J VERE-HODGE,890562:142778923,"25,981.14 ",Legal Aid Payment Crime Higher
MINISTRY OF JUSTICE,LEGAL AID AGENCY,13/01/2016,Civil Representation,LEGAL AID FUND,HANNAH METTAM,890662:142798425,"26,011.80 ",Legal Aid Payment Civil Representation
MINISTRY OF JUSTICE,LEGAL AID AGENCY,13/01/2016,Crime Higher,LEGAL AID FUND,CHARLOTTE J A O'CONNOR,890666:142820291,"31,001.58 ",Legal Aid Payment Crime Higher
MINISTRY OF JUSTICE,LEGAL AID AGENCY,13/01/2016,Crime Higher,LEGAL AID FUND,TUCKERS SOLICITORS LLP,890791:142793480,"29,074.56 ",Legal Aid Payment Crime Higher
MINISTRY OF JUSTICE,LEGAL AID AGENCY,13/01/2016,Crime Higher,LEGAL AID FUND,LLM SOLICITORS (LONDON) LTD,890812:142777884,"66,414.86 ",Legal Aid Payment Crime Higher
MINISTRY OF JUSTICE,LEGAL AID AGENCY,13/01/2016,Crime Higher,LEGAL AID FUND,L P EVANS SOLICITORS,890825:142838982,"33,072.12 ",Legal Aid Payment Crime Higher
MINISTRY OF JUSTICE,LEGAL AID AGENCY,13/01/2016,Crime Higher,LEGAL AID FUND,G T STEWART SOLICITORS,890840:142840038,"37,707.06 ",Legal Aid Payment Crime Higher
MINISTRY OF JUSTICE,LEGAL AID AGENCY,13/01/2016,Civil Representation,LEGAL AID FUND,CHAMBERS SOLICITORS,890842:142768114,"47,764.26 ",Legal Aid Payment Civil Representation
MINISTRY OF JUSTICE,LEGAL AID AGENCY,13/01/2016,Civil Representation,LEGAL AID FUND,HARNEY & WELLS,890862:3000000422470024,"26,985.60 ",Legal Aid Payment Civil Representation
MINISTRY OF JUSTICE,LEGAL AID AGENCY,13/01/2016,Crime Higher,LEGAL AID FUND,BULLIVANT LAW LTD,890909:142778667,"39,627.00 ",Legal Aid Payment Crime Higher
MINISTRY OF JUSTICE,LEGAL AID AGENCY,13/01/2016,Crime Higher,LEGAL AID FUND,EBR ATTRIDGE LLP,890919:142840542,"27,542.62 ",Legal Aid Payment Crime Higher
MINISTRY OF JUSTICE,LEGAL AID AGENCY,13/01/2016,Civil Representation,LEGAL AID FUND,MAKIN DIXON SOLICITORS LTD,890922:142783205,"51,084.25 ",Legal Aid Payment Civil Representation
MINISTRY OF JUSTICE,LEGAL AID AGENCY,13/01/2016,Civil Representation,LEGAL AID FUND,MAKIN DIXON SOLICITORS LTD,890922:142783207,"-50,929.25 ",Legal Aid Payment Civil Representation
MINISTRY OF JUSTICE,LEGAL AID AGENCY,13/01/2016,Civil Representation,LEGAL AID FUND,SOLICITORHELP.COM,890996:142768527,"25,212.50 ",Legal Aid Payment Civil Representation
MINISTRY OF JUSTICE,LEGAL AID AGENCY,13/01/2016,Civil Representation,LEGAL AID FUND,CREIGHTON & PARTNERS,891007:142785793,"42,745.47 ",Legal Aid Payment Civil Representation
MINISTRY OF JUSTICE,LEGAL AID AGENCY,13/01/2016,Civil Representation,LEGAL AID FUND,CHILD LAW PARTNERSHIP LTD,891063:141962874,"25,695.27 ",Legal Aid Payment Civil Representation
MINISTRY OF JUSTICE,LEGAL AID AGENCY,13/01/2016,Crime Higher,LEGAL AID FUND,CUTTLE & CO,891080:142838964,"29,002.13 ",Legal Aid Payment Crime Higher
MINISTRY OF JUSTICE,LEGAL AID AGENCY,13/01/2016,Crime Higher,LEGAL AID FUND,BUXTON RYAN & CO,891087:142792590,"75,092.23 ",Legal Aid Payment Crime Higher
MINISTRY OF JUSTICE,LEGAL AID AGENCY,13/01/2016,Civil Representation,LEGAL AID FUND,FINN GLEDHILL,891172:142809828,"66,603.49 ",Legal Aid Payment Civil Representation
MINISTRY OF JUSTICE,LEGAL AID AGENCY,13/01/2016,Civil Representation,LEGAL AID FUND,FINN GLEDHILL,891172:142809996,"-65,926.74 ",Legal Aid Payment Civil Representation
MINISTRY OF JUSTICE,LEGAL AID AGENCY,13/01/2016,Crime Higher,LEGAL AID FUND,VEJA & CO LTD,891250:142838981,"35,812.67 ",Legal Aid Payment Crime Higher
MINISTRY OF JUSTICE,LEGAL AID AGENCY,13/01/2016,Crime Higher,LEGAL AID FUND,BARK & CO,891253:142793687,"25,234.55 ",Legal Aid Payment Crime Higher
MINISTRY OF JUSTICE,LEGAL AID AGENCY,13/01/2016,Crime Higher,LEGAL AID FUND,BARK & CO,891253:142840428,"89,975.11 ",Legal Aid Payment Crime Higher
MINISTRY OF JUSTICE,LEGAL AID AGENCY,13/01/2016,Crime Higher,LEGAL AID FUND,AHMED & CO,891263:142820230,"107,970.13 ",Legal Aid Payment Crime Higher
MINISTRY OF JUSTICE,LEGAL AID AGENCY,13/01/2016,Crime Higher,LEGAL AID FUND,J. R. JONES SOLICITORS,891364:142839434,"29,523.00 ",Legal Aid Payment Crime Higher
MINISTRY OF JUSTICE,LEGAL AID AGENCY,13/01/2016,Crime Higher,LEGAL AID FUND,CROSSMANS SOLICITORS,891461:142777237,"46,440.85 ",Legal Aid Payment Crime Higher
MINISTRY OF JUSTICE,LEGAL AID AGENCY,13/01/2016,Civil Representation,LEGAL AID FUND,AITKEN ASSOCIATES,891528:142782322,"27,845.82 ",Legal Aid Payment Civil Representation
MINISTRY OF JUSTICE,LEGAL AID AGENCY,13/01/2016,Crime Higher,LEGAL AID FUND,GOLDKORNS,891547:142840598,"25,830.11 ",Legal Aid Payment Crime Higher
MINISTRY OF JUSTICE,LEGAL AID AGENCY,21/01/2016,Crime Higher,LEGAL AID FUND,DAVID J GODFREY,891792:142854442,"29,846.12 ",Legal Aid Payment Crime Higher
MINISTRY OF JUSTICE,LEGAL AID AGENCY,21/01/2016,Crime Higher,LEGAL AID FUND,J DEXTER DIAS,891829:142893466,"59,426.34 ",Legal Aid Payment Crime Higher
MINISTRY OF JUSTICE,LEGAL AID AGENCY,21/01/2016,Crime Higher,LEGAL AID FUND,STEPHEN WALTERS [ADVOCATE],891903:142867748,"36,390.00 ",Legal Aid Payment Crime Higher
MINISTRY OF JUSTICE,LEGAL AID AGENCY,21/01/2016,Crime Higher,LEGAL AID FUND,LEO SEELIG,891924:142881407,"45,003.48 ",Legal Aid Payment Crime Higher
MINISTRY OF JUSTICE,LEGAL AID AGENCY,21/01/2016,Civil Representation,LEGAL AID FUND,BREEZE & WYLES SOLICITORS LTD,891937:142663416,"30,743.29 ",Legal Aid Payment Civil Representation
MINISTRY OF JUSTICE,LEGAL AID AGENCY,21/01/2016,Civil Representation,LEGAL AID FUND,HECHT MONTGOMERY SOLICITORS,891964:142857679,"40,415.32 ",Legal Aid Payment Civil Representation
MINISTRY OF JUSTICE,LEGAL AID AGENCY,21/01/2016,Civil Representation,LEGAL AID FUND,HECHT MONTGOMERY SOLICITORS,891964:142857688,"-40,304.40 ",Legal Aid Payment Civil Representation
MINISTRY OF JUSTICE,LEGAL AID AGENCY,21/01/2016,Crime Higher,LEGAL AID FUND,CHARLOTTE EASTWOOD,892088:142853385,"31,017.84 ",Legal Aid Payment Crime Higher
MINISTRY OF JUSTICE,LEGAL AID AGENCY,21/01/2016,Civil Representation,LEGAL AID FUND,JACQUELINE L THOMAS,892090:142861775,"35,618.04 ",Legal Aid Payment Civil Representation
MINISTRY OF JUSTICE,LEGAL AID AGENCY,21/01/2016,Crime Higher,LEGAL AID FUND,F JOHN G DUNNING,892091:142854714,"44,441.32 ",Legal Aid Payment Crime Higher
MINISTRY OF JUSTICE,LEGAL AID AGENCY,21/01/2016,Crime Higher,LEGAL AID FUND,DANIEL E D MURRAY,892116:142869205,"26,318.11 ",Legal Aid Payment Crime Higher
MINISTRY OF JUSTICE,LEGAL AID AGENCY,21/01/2016,Civil Representation,LEGAL AID FUND,SHAUN SPENCER,892133:142857923,"39,312.00 ",Legal Aid Payment Civil Representation
MINISTRY OF JUSTICE,LEGAL AID AGENCY,21/01/2016,Civil Representation,LEGAL AID FUND,SHAUN SPENCER,892133:142871522,"-30,159.92 ",Legal Aid Payment Civil Representation
MINISTRY OF JUSTICE,LEGAL AID AGENCY,21/01/2016,Crime Higher,LEGAL AID FUND,NADINE RADFORD QC,892146:142853947,"41,744.71 ",Legal Aid Payment Crime Higher
MINISTRY OF JUSTICE,LEGAL AID AGENCY,21/01/2016,Civil Representation,LEGAL AID FUND,PAULA A SPARKS,892171:142885645,"25,663.84 ",Legal Aid Payment Civil Representation
MINISTRY OF JUSTICE,LEGAL AID AGENCY,21/01/2016,Civil Representation,LEGAL AID FUND,PAULA A SPARKS,892171:142885651,"29,895.10 ",Legal Aid Payment Civil Representation
MINISTRY OF JUSTICE,LEGAL AID AGENCY,21/01/2016,Civil Representation,LEGAL AID FUND,SIMON D HIRST,892193:142859543,"39,840.00 ",Legal Aid Payment Civil Representation
MINISTRY OF JUSTICE,LEGAL AID AGENCY,21/01/2016,Civil Representation,LEGAL AID FUND,PETER FELDSCHREIBER,892214:142885632,"27,324.57 ",Legal Aid Payment Civil Representation
MINISTRY OF JUSTICE,LEGAL AID AGENCY,21/01/2016,Civil Representation,LEGAL AID FUND,A JAMES BROWN,892271:142797878,"29,548.80 ",Legal Aid Payment Civil Representation
MINISTRY OF JUSTICE,LEGAL AID AGENCY,21/01/2016,Crime Higher,LEGAL AID FUND,RACHEL R V A BRAND QC,892346:142854235,"41,855.04 ",Legal Aid Payment Crime Higher
MINISTRY OF JUSTICE,LEGAL AID AGENCY,21/01/2016,Civil Representation,LEGAL AID FUND,MARK G ALLEN,892367:142887695,"37,720.60 ",Legal Aid Payment Civil Representation
MINISTRY OF JUSTICE,LEGAL AID AGENCY,21/01/2016,Civil Representation,LEGAL AID FUND,HEIDI KNIGHT,892411:142885577,"69,486.56 ",Legal Aid Payment Civil Representation
MINISTRY OF JUSTICE,LEGAL AID AGENCY,21/01/2016,Civil Representation,LEGAL AID FUND,HEIDI KNIGHT,892411:142886048,"-51,742.34 ",Legal Aid Payment Civil Representation
MINISTRY OF JUSTICE,LEGAL AID AGENCY,21/01/2016,Civil Representation,LEGAL AID FUND,PHILIP A MCCORMACK,892432:142872206,"84,183.96 ",Legal Aid Payment Civil Representation
MINISTRY OF JUSTICE,LEGAL AID AGENCY,21/01/2016,Civil Representation,LEGAL AID FUND,KATE M GRIEVE,892433:142858305,"30,059.70 ",Legal Aid Payment Civil Representation
MINISTRY OF JUSTICE,LEGAL AID AGENCY,21/01/2016,Civil Representation,LEGAL AID FUND,JAMES BERRY,892437:142885609,"137,548.44 ",Legal Aid Payment Civil Representation
MINISTRY OF JUSTICE,LEGAL AID AGENCY,21/01/2016,Civil Representation,LEGAL AID FUND,JAMES BERRY,892437:142885971,"-66,068.97 ",Legal Aid Payment Civil Representation
MINISTRY OF JUSTICE,LEGAL AID AGENCY,21/01/2016,Civil Representation,LEGAL AID FUND,JAMES BERRY,892437:142886047,"-37,097.99 ",Legal Aid Payment Civil Representation
MINISTRY OF JUSTICE,LEGAL AID AGENCY,21/01/2016,Civil Representation,LEGAL AID FUND,CHRISTOPHER G JOHNSTON QC,892449:142885591,"182,894.65 ",Legal Aid Payment Civil Representation
MINISTRY OF JUSTICE,LEGAL AID AGENCY,21/01/2016,Civil Representation,LEGAL AID FUND,CHRISTOPHER G JOHNSTON QC,892449:142885972,"-93,490.04 ",Legal Aid Payment Civil Representation
MINISTRY OF JUSTICE,LEGAL AID AGENCY,21/01/2016,Civil Representation,LEGAL AID FUND,CHRISTOPHER G JOHNSTON QC,892449:142886046,"-43,680.95 ",Legal Aid Payment Civil Representation
MINISTRY OF JUSTICE,LEGAL AID AGENCY,21/01/2016,Crime Higher,LEGAL AID FUND,RONALD M JAFFA,892568:142881433,"26,085.14 ",Legal Aid Payment Crime Higher
MINISTRY OF JUSTICE,LEGAL AID AGENCY,21/01/2016,Crime Higher,LEGAL AID FUND,OSMAN H OSMAN,892572:142894664,"32,799.14 ",Legal Aid Payment Crime Higher
MINISTRY OF JUSTICE,LEGAL AID AGENCY,21/01/2016,Crime Higher,LEGAL AID FUND,L ROBERT S TRESMAN,892582:142881898,"31,878.64 ",Legal Aid Payment Crime Higher
MINISTRY OF JUSTICE,LEGAL AID AGENCY,21/01/2016,Crime Higher,LEGAL AID FUND,JAMES VAKIL,892584:142867848,"28,078.48 ",Legal Aid Payment Crime Higher
MINISTRY OF JUSTICE,LEGAL AID AGENCY,21/01/2016,Crime Higher,LEGAL AID FUND,BLOCK ASSOCIATES LTD,892648:142853482,"53,871.54 ",Legal Aid Payment Crime Higher
MINISTRY OF JUSTICE,LEGAL AID AGENCY,21/01/2016,Crime Higher,LEGAL AID FUND,K A SOLICITORS,892661:142882221,"107,574.07 ",Legal Aid Payment Crime Higher
MINISTRY OF JUSTICE,LEGAL AID AGENCY,21/01/2016,Crime Higher,LEGAL AID FUND,CHIVERS SOLICITORS,892667:142869164,"89,975.11 ",Legal Aid Payment Crime Higher
MINISTRY OF JUSTICE,LEGAL AID AGENCY,21/01/2016,Civil Representation,LEGAL AID FUND,JWP SOLICITORS,892681:142873539,"36,297.38 ",Legal Aid Payment Civil Representation
MINISTRY OF JUSTICE,LEGAL AID AGENCY,21/01/2016,Crime Higher,LEGAL AID FUND,VIRDEES SOLICITORS LTD,892702:142867561,"64,330.40 ",Legal Aid Payment Crime Higher
MINISTRY OF JUSTICE,LEGAL AID AGENCY,21/01/2016,Crime Higher,LEGAL AID FUND,YASMIN & SHAID SOLICITORS LTD,892775:142881104,"77,980.34 ",Legal Aid Payment Crime Higher
MINISTRY OF JUSTICE,LEGAL AID AGENCY,21/01/2016,Crime Higher,LEGAL AID FUND,YASMIN & SHAID SOLICITORS LTD,892775:142882095,"82,395.38 ",Legal Aid Payment Crime Higher
MINISTRY OF JUSTICE,LEGAL AID AGENCY,21/01/2016,Crime Higher,LEGAL AID FUND,MORGAN BROWN CAHILL SOLICITORS,892794:142853261,"26,698.10 ",Legal Aid Payment Crime Higher
MINISTRY OF JUSTICE,LEGAL AID AGENCY,21/01/2016,Crime Higher,LEGAL AID FUND,MORGAN BROWN CAHILL SOLICITORS,892794:142854089,"59,677.87 ",Legal Aid Payment Crime Higher
MINISTRY OF JUSTICE,LEGAL AID AGENCY,21/01/2016,Crime Higher,LEGAL AID FUND,HASKELL & CO,892795:142882241,"77,121.20 ",Legal Aid Payment Crime Higher
MINISTRY OF JUSTICE,LEGAL AID AGENCY,21/01/2016,Crime Higher,LEGAL AID FUND,ZMS LEGAL LTD TA ZMS SOLICITORS,892796:142854472,"26,089.38 ",Legal Aid Payment Crime Higher
MINISTRY OF JUSTICE,LEGAL AID AGENCY,21/01/2016,Crime Higher,LEGAL AID FUND,HGH CRIMINAL DEFENCE SOLICITORS,892828:142853798,"57,298.43 ",Legal Aid Payment Crime Higher
MINISTRY OF JUSTICE,LEGAL AID AGENCY,21/01/2016,Civil Representation,LEGAL AID FUND,DAVIS & SIMMONDS & DONAGHEY,892829:142872008,"80,178.31 ",Legal Aid Payment Civil Representation
MINISTRY OF JUSTICE,LEGAL AID AGENCY,21/01/2016,Civil Representation,LEGAL AID FUND,DAVIS & SIMMONDS & DONAGHEY,892829:142884156,"-44,193.60 ",Legal Aid Payment Civil Representation
MINISTRY OF JUSTICE,LEGAL AID AGENCY,21/01/2016,Crime Higher,LEGAL AID FUND,MCLARTYS SOLICITORS,892834:142881286,"30,246.78 ",Legal Aid Payment Crime Higher
MINISTRY OF JUSTICE,LEGAL AID AGENCY,21/01/2016,Crime Higher,LEGAL AID FUND,DANIEL BERMAN & CO,892881:142881606,"38,298.88 ",Legal Aid Payment Crime Higher
MINISTRY OF JUSTICE,LEGAL AID AGENCY,21/01/2016,Crime Higher,LEGAL AID FUND,CARTWRIGHT KING SOLICITORS,892882:142882240,"43,122.48 ",Legal Aid Payment Crime Higher
MINISTRY OF JUSTICE,LEGAL AID AGENCY,21/01/2016,Crime Higher,LEGAL AID FUND,BILL CHARLTON SOLICITORS,892885:142882112,"89,975.11 ",Legal Aid Payment Crime Higher
MINISTRY OF JUSTICE,LEGAL AID AGENCY,21/01/2016,Crime Higher,LEGAL AID FUND,WILFORD SMITH & CO LTD,892920:142881276,"105,857.75 ",Legal Aid Payment Crime Higher
MINISTRY OF JUSTICE,LEGAL AID AGENCY,21/01/2016,Crime Higher,LEGAL AID FUND,LEDGISTERS SOLICITORS,892955:142647116,"31,422.55 ",Legal Aid Payment Crime Higher
MINISTRY OF JUSTICE,LEGAL AID AGENCY,21/01/2016,Crime Higher,LEGAL AID FUND,LEDGISTERS SOLICITORS,892955:142793651,"32,554.20 ",Legal Aid Payment Crime Higher
MINISTRY OF JUSTICE,LEGAL AID AGENCY,21/01/2016,Crime Lower,LEGAL AID FUND,LEDGISTERS SOLICITORS,892955:142873664,"-32,000.00 ",Legal Aid Payment Crime Lower
MINISTRY OF JUSTICE,LEGAL AID AGENCY,21/01/2016,Civil Representation,LEGAL AID FUND,WILSON SOLICITORS LLP,892977:142893013,"27,957.75 ",Legal Aid Payment Civil Representation
MINISTRY OF JUSTICE,LEGAL AID AGENCY,21/01/2016,Crime Higher,LEGAL AID FUND,GALBRAITH BRANLEY SOLICITORS,892978:142880850,"35,915.36 ",Legal Aid Payment Crime Higher
MINISTRY OF JUSTICE,LEGAL AID AGENCY,21/01/2016,Civil Representation,LEGAL AID FUND,BURTON & DYSON,893078:142861536,"25,287.23 ",Legal Aid Payment Civil Representation
MINISTRY OF JUSTICE,LEGAL AID AGENCY,21/01/2016,Crime Higher,LEGAL AID FUND,MACAULEY SMITH  LTD,893097:142854683,"86,943.73 ",Legal Aid Payment Crime Higher
MINISTRY OF JUSTICE,LEGAL AID AGENCY,21/01/2016,Crime Higher,LEGAL AID FUND,KELCEY & HALL SOLICITORS,893103:142894084,"32,383.05 ",Legal Aid Payment Crime Higher
MINISTRY OF JUSTICE,LEGAL AID AGENCY,21/01/2016,Crime Higher,LEGAL AID FUND,JANES SOLICITORS,893129:142888598,"45,337.11 ",Legal Aid Payment Crime Higher
MINISTRY OF JUSTICE,LEGAL AID AGENCY,21/01/2016,Crime Higher,LEGAL AID FUND,MANDLA BHOMRA & CO,893148:142882230,"83,678.95 ",Legal Aid Payment Crime Higher
MINISTRY OF JUSTICE,LEGAL AID AGENCY,21/01/2016,Crime Higher,LEGAL AID FUND,ROBERT LIZAR,893157:142868458,"37,791.76 ",Legal Aid Payment Crime Higher
MINISTRY OF JUSTICE,LEGAL AID AGENCY,21/01/2016,Crime Higher,LEGAL AID FUND,BARK & CO,893194:142882235,"25,508.57 ",Legal Aid Payment Crime Higher
MINISTRY OF JUSTICE,LEGAL AID AGENCY,21/01/2016,Civil Representation,LEGAL AID FUND,FARLEYS SOLICITORS LLP,893209:142857867,"46,275.35 ",Legal Aid Payment Civil Representation
MINISTRY OF JUSTICE,LEGAL AID AGENCY,21/01/2016,Crime Higher,LEGAL AID FUND,ARORA LODHI HEATH,893268:142854693,"67,321.13 ",Legal Aid Payment Crime Higher
MINISTRY OF JUSTICE,LEGAL AID AGENCY,21/01/2016,Crime Higher,LEGAL AID FUND,B H MOHAMMED,893312:142853548,"49,729.07 ",Legal Aid Payment Crime Higher
MINISTRY OF JUSTICE,LEGAL AID AGENCY,21/01/2016,Crime Higher,LEGAL AID FUND,O'KEEFFE SOLICITORS,893320:142894481,"35,498.47 ",Legal Aid Payment Crime Higher
MINISTRY OF JUSTICE,LEGAL AID AGENCY,21/01/2016,Crime Higher,LEGAL AID FUND,SLATER & GORDON (UK) LLP,893321:142881294,"95,707.01 ",Legal Aid Payment Crime Higher
MINISTRY OF JUSTICE,LEGAL AID AGENCY,21/01/2016,Civil Representation,LEGAL AID FUND,MARTIN MURRAY & ASSOCIATES,893326:142861234,"38,502.58 ",Legal Aid Payment Civil Representation
MINISTRY OF JUSTICE,LEGAL AID AGENCY,21/01/2016,Civil Representation,LEGAL AID FUND,MARTIN MURRAY & ASSOCIATES,893326:142861258,"-36,343.31 ",Legal Aid Payment Civil Representation
MINISTRY OF JUSTICE,LEGAL AID AGENCY,21/01/2016,Crime Higher,LEGAL AID FUND,BASSETS,893347:142853678,"27,009.05 ",Legal Aid Payment Crime Higher
MINISTRY OF JUSTICE,LEGAL AID AGENCY,21/01/2016,Crime Higher,LEGAL AID FUND,BASSETS,893348:142882084,"82,575.95 ",Legal Aid Payment Crime Higher
MINISTRY OF JUSTICE,LEGAL AID AGENCY,21/01/2016,Crime Higher,LEGAL AID FUND,PILLAI & JONES,893350:142853694,"38,151.07 ",Legal Aid Payment Crime Higher
MINISTRY OF JUSTICE,LEGAL AID AGENCY,21/01/2016,Crime Higher,LEGAL AID FUND,PILLAI & JONES,893350:142882254,"89,975.11 ",Legal Aid Payment Crime Higher
MINISTRY OF JUSTICE,LEGAL AID AGENCY,21/01/2016,Crime Higher,LEGAL AID FUND,EDWARD FAIL BRADSHAW & WATERSON,893353:142853863,"41,993.60 ",Legal Aid Payment Crime Higher
MINISTRY OF JUSTICE,LEGAL AID AGENCY,21/01/2016,Crime Higher,LEGAL AID FUND,EDWARD FAIL BRADSHAW & WATERSON,893354:142881858,"91,617.24 ",Legal Aid Payment Crime Higher
MINISTRY OF JUSTICE,LEGAL AID AGENCY,21/01/2016,Civil Representation,LEGAL AID FUND,DUNCAN LEWIS & CO,893360:142884980,"27,883.69 ",Legal Aid Payment Civil Representation
MINISTRY OF JUSTICE,LEGAL AID AGENCY,21/01/2016,Crime Higher,LEGAL AID FUND,HUGHMANS,893362:142882211,"68,065.99 ",Legal Aid Payment Crime Higher
MINISTRY OF JUSTICE,LEGAL AID AGENCY,21/01/2016,Crime Higher,LEGAL AID FUND,THOMAS BOYD WHYTE,893372:142853297,"31,889.44 ",Legal Aid Payment Crime Higher
MINISTRY OF JUSTICE,LEGAL AID AGENCY,21/01/2016,Crime Higher,LEGAL AID FUND,FREEMANS SOLICITORS.,893383:142882214,"98,602.86 ",Legal Aid Payment Crime Higher
MINISTRY OF JUSTICE,LEGAL AID AGENCY,21/01/2016,Crime Higher,LEGAL AID FUND,SAUNDERS SOLICITORS LTD,893406:142854573,"89,975.11 ",Legal Aid Payment Crime Higher
MINISTRY OF JUSTICE,LEGAL AID AGENCY,21/01/2016,Crime Higher,LEGAL AID FUND,CATHERINE L BRADSHAW,893509:142881882,"29,471.98 ",Legal Aid Payment Crime Higher
MINISTRY OF JUSTICE,LEGAL AID AGENCY,21/01/2016,Crime Higher,LEGAL AID FUND,GARETH D HUGHES,893643:142881886,"29,471.98 ",Legal Aid Payment Crime Higher
MINISTRY OF JUSTICE,LEGAL AID AGENCY,21/01/2016,Crime Higher,LEGAL AID FUND,DAVID H EMANUEL,893662:142868301,"45,484.20 ",Legal Aid Payment Crime Higher
MINISTRY OF JUSTICE,LEGAL AID AGENCY,21/01/2016,Crime Higher,LEGAL AID FUND,RUPERT HALLOWES,893672:142853828,"33,483.14 ",Legal Aid Payment Crime Higher
MINISTRY OF JUSTICE,LEGAL AID AGENCY,21/01/2016,Crime Higher,LEGAL AID FUND,GILLIAN BATTS,893919:142881334,"29,507.52 ",Legal Aid Payment Crime Higher
MINISTRY OF JUSTICE,LEGAL AID AGENCY,21/01/2016,Civil Representation,LEGAL AID FUND,SHARANJEET K BHACHU,894002:142872236,"41,476.32 ",Legal Aid Payment Civil Representation
MINISTRY OF JUSTICE,LEGAL AID AGENCY,21/01/2016,Crime Higher,LEGAL AID FUND,ANTHONY E ORCHARD,894020:142853434,"33,055.73 ",Legal Aid Payment Crime Higher
MINISTRY OF JUSTICE,LEGAL AID AGENCY,21/01/2016,Crime Higher,LEGAL AID FUND,PETER H M BINDER,894025:142869039,"34,619.68 ",Legal Aid Payment Crime Higher
MINISTRY OF JUSTICE,LEGAL AID AGENCY,21/01/2016,Crime Higher,LEGAL AID FUND,LEONARD SMITH QC,894026:142894007,"35,320.20 ",Legal Aid Payment Crime Higher
MINISTRY OF JUSTICE,LEGAL AID AGENCY,21/01/2016,Civil Representation,LEGAL AID FUND,R AELRED HOOKWAY,894081:142844376,"39,720.00 ",Legal Aid Payment Civil Representation
MINISTRY OF JUSTICE,LEGAL AID AGENCY,21/01/2016,Crime Higher,LEGAL AID FUND,NICHOLAS T C WELLS,894124:142853513,"26,998.94 ",Legal Aid Payment Crime Higher
MINISTRY OF JUSTICE,LEGAL AID AGENCY,21/01/2016,Crime Higher,LEGAL AID FUND,MARTYN J BOWYER,894198:142867486,"35,320.68 ",Legal Aid Payment Crime Higher
MINISTRY OF JUSTICE,LEGAL AID AGENCY,21/01/2016,Crime Higher,LEGAL AID FUND,HANNAH DUNCAN,894242:142867872,"32,874.48 ",Legal Aid Payment Crime Higher
MINISTRY OF JUSTICE,LEGAL AID AGENCY,21/01/2016,Crime Higher,LEGAL AID FUND,NICHOLAS J H LUMLEY,894248:142868359,"70,094.64 ",Legal Aid Payment Crime Higher
MINISTRY OF JUSTICE,LEGAL AID AGENCY,21/01/2016,Crime Higher,LEGAL AID FUND,SUSAN C HIRST,894274:142854316,"30,577.61 ",Legal Aid Payment Crime Higher
MINISTRY OF JUSTICE,LEGAL AID AGENCY,21/01/2016,Crime Higher,LEGAL AID FUND,GLEN D GATLAND,894283:142854192,"45,643.32 ",Legal Aid Payment Crime Higher
MINISTRY OF JUSTICE,LEGAL AID AGENCY,21/01/2016,Crime Higher,LEGAL AID FUND,OLIVER C J SAXBY,894286:142853992,"53,454.91 ",Legal Aid Payment Crime Higher
MINISTRY OF JUSTICE,LEGAL AID AGENCY,21/01/2016,Crime Higher,LEGAL AID FUND,D JANE BICKERSTAFF,894365:142868372,"29,517.30 ",Legal Aid Payment Crime Higher
MINISTRY OF JUSTICE,LEGAL AID AGENCY,21/01/2016,Crime Higher,LEGAL AID FUND,MICHAEL NEOFYTOU,894418:142853710,"25,201.92 ",Legal Aid Payment Crime Higher
MINISTRY OF JUSTICE,LEGAL AID AGENCY,21/01/2016,Crime Higher,LEGAL AID FUND,WELLS BURCOMBE LLP,894453:142882233,"98,602.86 ",Legal Aid Payment Crime Higher
MINISTRY OF JUSTICE,LEGAL AID AGENCY,21/01/2016,Crime Higher,LEGAL AID FUND,LLOYDS PR SOLICITORS,894464:142867698,"36,999.50 ",Legal Aid Payment Crime Higher
MINISTRY OF JUSTICE,LEGAL AID AGENCY,21/01/2016,Crime Higher,LEGAL AID FUND,SHAH LAW CHAMBERS,894468:142867572,"35,583.55 ",Legal Aid Payment Crime Higher
MINISTRY OF JUSTICE,LEGAL AID AGENCY,21/01/2016,Crime Higher,LEGAL AID FUND,SVS SOLICITORS,894471:142882091,"78,115.34 ",Legal Aid Payment Crime Higher
MINISTRY OF JUSTICE,LEGAL AID AGENCY,21/01/2016,Crime Higher,LEGAL AID FUND,ADVICE WISE SOLICITORS,894499:142882104,"90,057.74 ",Legal Aid Payment Crime Higher
MINISTRY OF JUSTICE,LEGAL AID AGENCY,21/01/2016,Crime Higher,LEGAL AID FUND,MORGAN ROSE LTD,894537:142882146,"78,406.47 ",Legal Aid Payment Crime Higher
MINISTRY OF JUSTICE,LEGAL AID AGENCY,21/01/2016,Crime Higher,LEGAL AID FUND,BIRDS SOLICITORS LTD,894539:142881274,"107,574.07 ",Legal Aid Payment Crime Higher
MINISTRY OF JUSTICE,LEGAL AID AGENCY,21/01/2016,Crime Higher,LEGAL AID FUND,MURRIA SOLICITORS LTD,894542:142882089,"98,187.06 ",Legal Aid Payment Crime Higher
MINISTRY OF JUSTICE,LEGAL AID AGENCY,21/01/2016,Civil Representation,LEGAL AID FUND,SMITH PARTNERSHIP,894547:142846232,"55,695.59 ",Legal Aid Payment Civil Representation
MINISTRY OF JUSTICE,LEGAL AID AGENCY,21/01/2016,Civil Representation,LEGAL AID FUND,SMITH PARTNERSHIP,894547:142871706,"-28,394.79 ",Legal Aid Payment Civil Representation
MINISTRY OF JUSTICE,LEGAL AID AGENCY,21/01/2016,Crime Higher,LEGAL AID FUND,COHEN CRAMER,894566:142882178,"55,957.03 ",Legal Aid Payment Crime Higher
MINISTRY OF JUSTICE,LEGAL AID AGENCY,21/01/2016,Crime Higher,LEGAL AID FUND,ALI & CO,894576:142882186,"42,500.83 ",Legal Aid Payment Crime Higher
MINISTRY OF JUSTICE,LEGAL AID AGENCY,21/01/2016,Crime Higher,LEGAL AID FUND,BAXTER BROWN MCARTHUR SOLICITORS,894589:142882174,"93,466.60 ",Legal Aid Payment Crime Higher
MINISTRY OF JUSTICE,LEGAL AID AGENCY,21/01/2016,Crime Higher,LEGAL AID FUND,WEST MIDLANDS SOLICITORS,894590:142853454,"28,455.32 ",Legal Aid Payment Crime Higher
MINISTRY OF JUSTICE,LEGAL AID AGENCY,21/01/2016,Crime Higher,LEGAL AID FUND,AMAL SOLICITORS,894600:142882213,"107,574.07 ",Legal Aid Payment Crime Higher
MINISTRY OF JUSTICE,LEGAL AID AGENCY,21/01/2016,Crime Higher,LEGAL AID FUND,ABBEY SOLICITORS,894606:142882236,"89,975.11 ",Legal Aid Payment Crime Higher
MINISTRY OF JUSTICE,LEGAL AID AGENCY,21/01/2016,Crime Higher,LEGAL AID FUND,BROWN BEER NIXON MALLON.,894611:142882210,"89,975.11 ",Legal Aid Payment Crime Higher
MINISTRY OF JUSTICE,LEGAL AID AGENCY,21/01/2016,Crime Higher,LEGAL AID FUND,ALBIN & CO LTD,894614:142894238,"29,913.95 ",Legal Aid Payment Crime Higher
MINISTRY OF JUSTICE,LEGAL AID AGENCY,21/01/2016,Crime Higher,LEGAL AID FUND,MANN & CO SOLICITORS,894674:142882107,"107,970.13 ",Legal Aid Payment Crime Higher
MINISTRY OF JUSTICE,LEGAL AID AGENCY,21/01/2016,Crime Higher,LEGAL AID FUND,OLLIERS,894701:142854174,"36,111.03 ",Legal Aid Payment Crime Higher
MINISTRY OF JUSTICE,LEGAL AID AGENCY,21/01/2016,Crime Higher,LEGAL AID FUND,OLLIERS,894701:142893350,"39,933.84 ",Legal Aid Payment Crime Higher
MINISTRY OF JUSTICE,LEGAL AID AGENCY,21/01/2016,Crime Higher,LEGAL AID FUND,FARADAYS SOLICITORS LTD,894712:142881186,"26,893.52 ",Legal Aid Payment Crime Higher
MINISTRY OF JUSTICE,LEGAL AID AGENCY,21/01/2016,Crime Higher,LEGAL AID FUND,FARADAYS SOLICITORS LTD,894712:142882250,"107,574.07 ",Legal Aid Payment Crime Higher
MINISTRY OF JUSTICE,LEGAL AID AGENCY,21/01/2016,Crime Higher,LEGAL AID FUND,THE JOHNSON PARTNERSHIP,894719:142882185,"101,688.98 ",Legal Aid Payment Crime Higher
MINISTRY OF JUSTICE,LEGAL AID AGENCY,21/01/2016,Civil Representation,LEGAL AID FUND,BRADBURY ROBERTS & RABY,894723:142844360,"41,604.76 ",Legal Aid Payment Civil Representation
MINISTRY OF JUSTICE,LEGAL AID AGENCY,21/01/2016,Civil Representation,LEGAL AID FUND,BRADBURY ROBERTS & RABY,894723:142859429,"32,418.54 ",Legal Aid Payment Civil Representation
MINISTRY OF JUSTICE,LEGAL AID AGENCY,21/01/2016,Civil Representation,LEGAL AID FUND,BRADBURY ROBERTS & RABY,894723:142871454,"-28,512.00 ",Legal Aid Payment Civil Representation
MINISTRY OF JUSTICE,LEGAL AID AGENCY,21/01/2016,Civil Representation,LEGAL AID FUND,BRADBURY ROBERTS & RABY,894723:142871726,"-31,363.20 ",Legal Aid Payment Civil Representation
MINISTRY OF JUSTICE,LEGAL AID AGENCY,21/01/2016,Crime Higher,LEGAL AID FUND,GEPP & SONS SOLICITORS,894734:142852983,"70,713.38 ",Legal Aid Payment Crime Higher
MINISTRY OF JUSTICE,LEGAL AID AGENCY,21/01/2016,Crime Lower,LEGAL AID FUND,WATSON WOODHOUSE SOLICITORS LLP,894844:142858830,"28,300.00 ",Legal Aid Payment Crime Lower
MINISTRY OF JUSTICE,LEGAL AID AGENCY,21/01/2016,Crime Higher,LEGAL AID FUND,WATSON WOODHOUSE SOLICITORS LLP,894845:142854333,"35,597.46 ",Legal Aid Payment Crime Higher
MINISTRY OF JUSTICE,LEGAL AID AGENCY,21/01/2016,Crime Higher,LEGAL AID FUND,STUART MILLER SOLICITORS LTD,894852:142868461,"71,279.51 ",Legal Aid Payment Crime Higher
MINISTRY OF JUSTICE,LEGAL AID AGENCY,21/01/2016,Civil Representation,LEGAL AID FUND,IRWIN MITCHELL LLP,894858:142885395,"1,997,167.09 ",Legal Aid Payment Civil Representation
MINISTRY OF JUSTICE,LEGAL AID AGENCY,21/01/2016,Civil Representation,LEGAL AID FUND,IRWIN MITCHELL LLP,894858:142885519,"1,190,437.57 ",Legal Aid Payment Civil Representation
MINISTRY OF JUSTICE,LEGAL AID AGENCY,21/01/2016,Civil Representation,LEGAL AID FUND,IRWIN MITCHELL LLP,894858:142885932,"-95,533.63 ",Legal Aid Payment Civil Representation
MINISTRY OF JUSTICE,LEGAL AID AGENCY,21/01/2016,Civil Representation,LEGAL AID FUND,IRWIN MITCHELL LLP,894858:142885942,"-185,898.20 ",Legal Aid Payment Civil Representation
MINISTRY OF JUSTICE,LEGAL AID AGENCY,21/01/2016,Civil Representation,LEGAL AID FUND,IRWIN MITCHELL LLP,894858:142885964,"-240,943.16 ",Legal Aid Payment Civil Representation
MINISTRY OF JUSTICE,LEGAL AID AGENCY,21/01/2016,Civil Representation,LEGAL AID FUND,IRWIN MITCHELL LLP,894858:142885965,"-95,599.17 ",Legal Aid Payment Civil Representation
MINISTRY OF JUSTICE,LEGAL AID AGENCY,21/01/2016,Civil Representation,LEGAL AID FUND,IRWIN MITCHELL LLP,894858:142885968,"-174,518.13 ",Legal Aid Payment Civil Representation
MINISTRY OF JUSTICE,LEGAL AID AGENCY,21/01/2016,Civil Representation,LEGAL AID FUND,IRWIN MITCHELL LLP,894858:142885969,"-115,954.39 ",Legal Aid Payment Civil Representation
MINISTRY OF JUSTICE,LEGAL AID AGENCY,21/01/2016,Civil Representation,LEGAL AID FUND,IRWIN MITCHELL LLP,894858:142885970,"-27,553.75 ",Legal Aid Payment Civil Representation
MINISTRY OF JUSTICE,LEGAL AID AGENCY,21/01/2016,Civil Representation,LEGAL AID FUND,IRWIN MITCHELL LLP,894858:142885973,"-369,746.47 ",Legal Aid Payment Civil Representation
MINISTRY OF JUSTICE,LEGAL AID AGENCY,21/01/2016,Civil Representation,LEGAL AID FUND,IRWIN MITCHELL LLP,894858:142885974,"-195,025.03 ",Legal Aid Payment Civil Representation
MINISTRY OF JUSTICE,LEGAL AID AGENCY,21/01/2016,Civil Representation,LEGAL AID FUND,IRWIN MITCHELL LLP,894858:142885975,"-200,000.00 ",Legal Aid Payment Civil Representation
MINISTRY OF JUSTICE,LEGAL AID AGENCY,21/01/2016,Civil Representation,LEGAL AID FUND,IRWIN MITCHELL LLP,894858:142885981,"-74,800.00 ",Legal Aid Payment Civil Representation
MINISTRY OF JUSTICE,LEGAL AID AGENCY,21/01/2016,Civil Representation,LEGAL AID FUND,IRWIN MITCHELL LLP,894858:142885997,"-121,843.98 ",Legal Aid Payment Civil Representation
MINISTRY OF JUSTICE,LEGAL AID AGENCY,21/01/2016,Civil Representation,LEGAL AID FUND,IRWIN MITCHELL LLP,894858:142886028,"-42,000.00 ",Legal Aid Payment Civil Representation
MINISTRY OF JUSTICE,LEGAL AID AGENCY,21/01/2016,Civil Representation,LEGAL AID FUND,IRWIN MITCHELL LLP,894858:142886036,"-203,004.08 ",Legal Aid Payment Civil Representation
MINISTRY OF JUSTICE,LEGAL AID AGENCY,21/01/2016,Civil Representation,LEGAL AID FUND,IRWIN MITCHELL LLP,894858:142886042,"-221,639.00 ",Legal Aid Payment Civil Representation
MINISTRY OF JUSTICE,LEGAL AID AGENCY,21/01/2016,Civil Representation,LEGAL AID FUND,IRWIN MITCHELL LLP,894858:142886043,"-265,968.07 ",Legal Aid Payment Civil Representation
MINISTRY OF JUSTICE,LEGAL AID AGENCY,21/01/2016,Civil Representation,LEGAL AID FUND,IRWIN MITCHELL LLP,894858:142886045,"-119,999.98 ",Legal Aid Payment Civil Representation
MINISTRY OF JUSTICE,LEGAL AID AGENCY,21/01/2016,Crime Higher,LEGAL AID FUND,TAYLOR STREET SOLICITORS LLP,894866:142869163,"89,975.11 ",Legal Aid Payment Crime Higher
MINISTRY OF JUSTICE,LEGAL AID AGENCY,21/01/2016,Crime Higher,LEGAL AID FUND,POTTER DERBY SOLICITORS,894972:142882101,"68,296.44 ",Legal Aid Payment Crime Higher
MINISTRY OF JUSTICE,LEGAL AID AGENCY,21/01/2016,Crime Higher,LEGAL AID FUND,LOVELL CHOHAN SOLICITORS LTD,894974:142882224,"89,975.11 ",Legal Aid Payment Crime Higher
MINISTRY OF JUSTICE,LEGAL AID AGENCY,21/01/2016,Crime Higher,LEGAL AID FUND,KANGS SOLICITORS,894999:142868661,"41,415.62 ",Legal Aid Payment Crime Higher
MINISTRY OF JUSTICE,LEGAL AID AGENCY,21/01/2016,Crime Higher,LEGAL AID FUND,CROSSMANS SOLICITORS,895013:142881249,"100,087.17 ",Legal Aid Payment Crime Higher
MINISTRY OF JUSTICE,LEGAL AID AGENCY,21/01/2016,Crime Higher,LEGAL AID FUND,STEPHANIE DALE & CO,895053:142881316,"77,121.20 ",Legal Aid Payment Crime Higher
MINISTRY OF JUSTICE,LEGAL AID AGENCY,21/01/2016,Crime Higher,LEGAL AID FUND,LEWIS NEDAS & CO,895075:142882227,"70,849.30 ",Legal Aid Payment Crime Higher
MINISTRY OF JUSTICE,LEGAL AID AGENCY,21/01/2016,Crime Higher,LEGAL AID FUND,HARDING EVANS LLP,895091:142882243,"83,047.62 ",Legal Aid Payment Crime Higher
MINISTRY OF JUSTICE,LEGAL AID AGENCY,27/01/2016,Civil Representation,LEGAL AID FUND,HADAWAY & HADAWAY SOLICITORS,895165:300000027673DCL614,"48,398.18 ",Legal Aid Payment Civil Representation
MINISTRY OF JUSTICE,LEGAL AID AGENCY,28/01/2016,Crime Higher,LEGAL AID FUND,METROLAW SOLICITORS,895193:142966988,"53,212.78 ",Legal Aid Payment Crime Higher
MINISTRY OF JUSTICE,LEGAL AID AGENCY,28/01/2016,Crime Lower,LEGAL AID FUND,CARTWRIGHT KING SOLICITORS,895219:142989382,"40,900.00 ",Legal Aid Payment Crime Lower
MINISTRY OF JUSTICE,LEGAL AID AGENCY,28/01/2016,Crime Lower,LEGAL AID FUND,CARTWRIGHT KING SOLICITORS,895221:142989380,"47,000.00 ",Legal Aid Payment Crime Lower
MINISTRY OF JUSTICE,LEGAL AID AGENCY,28/01/2016,Legal Help,LEGAL AID FUND,CJCH SOLICITORS,895232:142978728,"26,834.00 ",Legal Aid Payment Legal Help
MINISTRY OF JUSTICE,LEGAL AID AGENCY,28/01/2016,Legal Help,LEGAL AID FUND,APPLEMAN LEGAL,895253:142978626,"49,085.00 ",Legal Aid Payment Legal Help
MINISTRY OF JUSTICE,LEGAL AID AGENCY,28/01/2016,Legal Help,LEGAL AID FUND,BISON SOLICITORS LTD,895263:142978619,"91,610.00 ",Legal Aid Payment Legal Help
MINISTRY OF JUSTICE,LEGAL AID AGENCY,28/01/2016,Legal Help,LEGAL AID FUND,CROWN HOUSE SOLICITORS,895264:142978628,"33,939.00 ",Legal Aid Payment Legal Help
MINISTRY OF JUSTICE,LEGAL AID AGENCY,28/01/2016,Legal Help,LEGAL AID FUND,GUILE NICHOLAS-INC DONALD GALBRAITH & CO,895271:142978622,"56,854.00 ",Legal Aid Payment Legal Help
MINISTRY OF JUSTICE,LEGAL AID AGENCY,28/01/2016,Crime Lower,LEGAL AID FUND,HILL TWINE,895321:142990256,"26,860.00 ",Legal Aid Payment Crime Lower
MINISTRY OF JUSTICE,LEGAL AID AGENCY,28/01/2016,Civil Representation,LEGAL AID FUND,ATTWATERS JAMESON HILL,895341:141960457,"28,122.10 ",Legal Aid Payment Civil Representation
MINISTRY OF JUSTICE,LEGAL AID AGENCY,28/01/2016,Legal Help,LEGAL AID FUND,LEGAL JUSTICE SOLICITORS,895355:142978636,"31,986.00 ",Legal Aid Payment Legal Help
MINISTRY OF JUSTICE,LEGAL AID AGENCY,28/01/2016,Legal Help,LEGAL AID FUND,DUNCAN LEWIS,895372:142978620,"83,000.00 ",Legal Aid Payment Legal Help
MINISTRY OF JUSTICE,LEGAL AID AGENCY,28/01/2016,Legal Help,LEGAL AID FUND,SENTINEL SOLICITORS,895398:142978621,"59,235.00 ",Legal Aid Payment Legal Help
MINISTRY OF JUSTICE,LEGAL AID AGENCY,28/01/2016,Legal Help,LEGAL AID FUND,BARNES HARRILD & DYER,895401:142978633,"33,856.00 ",Legal Aid Payment Legal Help
MINISTRY OF JUSTICE,LEGAL AID AGENCY,28/01/2016,Crime Higher,LEGAL AID FUND,IMRAN SHAFI,895451:142940793,"29,745.84 ",Legal Aid Payment Crime Higher
MINISTRY OF JUSTICE,LEGAL AID AGENCY,28/01/2016,Crime Higher,LEGAL AID FUND,HOSSEIN ZAHIR,895494:142911361,"29,207.30 ",Legal Aid Payment Crime Higher
MINISTRY OF JUSTICE,LEGAL AID AGENCY,28/01/2016,Crime Lower,LEGAL AID FUND,CONNOR ROSS-BROWN SOLICITORS,895604:142989367,"35,000.00 ",Legal Aid Payment Crime Lower
MINISTRY OF JUSTICE,LEGAL AID AGENCY,28/01/2016,Crime Lower,LEGAL AID FUND,HAYES LAW SOLICITORS AND ADVOCATES LLP,895652:142990267,"25,459.00 ",Legal Aid Payment Crime Lower
MINISTRY OF JUSTICE,LEGAL AID AGENCY,28/01/2016,Legal Help,LEGAL AID FUND,QS JACKSON CANTER LTD,895667:142978623,"52,309.00 ",Legal Aid Payment Legal Help
MINISTRY OF JUSTICE,LEGAL AID AGENCY,28/01/2016,Crime Lower,LEGAL AID FUND,QS JACKSON CANTER LTD,895667:142990232,"45,613.00 ",Legal Aid Payment Crime Lower
MINISTRY OF JUSTICE,LEGAL AID AGENCY,28/01/2016,Civil Representation,LEGAL AID FUND,REEDS SOLICITORS LTD,895692:142980809,"25,544.78 ",Legal Aid Payment Civil Representation
MINISTRY OF JUSTICE,LEGAL AID AGENCY,28/01/2016,Crime Lower,LEGAL AID FUND,REEDS SOLICITORS LTD,895692:142990231,"28,977.00 ",Legal Aid Payment Crime Lower
MINISTRY OF JUSTICE,LEGAL AID AGENCY,28/01/2016,Crime Higher,LEGAL AID FUND,MUSTOE SHORTER SOLICITORS & ADVOCATE-ADV,895810:142910350,"38,392.92 ",Legal Aid Payment Crime Higher
MINISTRY OF JUSTICE,LEGAL AID AGENCY,28/01/2016,Crime Higher,LEGAL AID FUND,DAVID GRAY LLP-ADVOCATE,895817:142967506,"34,105.61 ",Legal Aid Payment Crime Higher
MINISTRY OF JUSTICE,LEGAL AID AGENCY,28/01/2016,Crime Higher,LEGAL AID FUND,MARK A RHIND,895871:143000725,"32,817.30 ",Legal Aid Payment Crime Higher
MINISTRY OF JUSTICE,LEGAL AID AGENCY,28/01/2016,Civil Representation,LEGAL AID FUND,CHRISTOPHER M KEMP,895873:140068982,"-27,735.00 ",Legal Aid Payment Civil Representation
MINISTRY OF JUSTICE,LEGAL AID AGENCY,28/01/2016,Civil Representation,LEGAL AID FUND,KATE V BRANIGAN QC,895915:141348729,"49,150.80 ",Legal Aid Payment Civil Representation
MINISTRY OF JUSTICE,LEGAL AID AGENCY,28/01/2016,Civil Representation,LEGAL AID FUND,KATE V BRANIGAN QC,895915:141367482,"-41,666.40 ",Legal Aid Payment Civil Representation
MINISTRY OF JUSTICE,LEGAL AID AGENCY,28/01/2016,Civil Representation,LEGAL AID FUND,KATE V BRANIGAN QC,895915:141367484,"-39,614.40 ",Legal Aid Payment Civil Representation
MINISTRY OF JUSTICE,LEGAL AID AGENCY,28/01/2016,Civil Representation,LEGAL AID FUND,KATE V BRANIGAN QC,895915:142912908,"73,969.20 ",Legal Aid Payment Civil Representation
MINISTRY OF JUSTICE,LEGAL AID AGENCY,28/01/2016,Crime Higher,LEGAL AID FUND,ANDREW J STUBBS,895986:142954234,"28,096.26 ",Legal Aid Payment Crime Higher
MINISTRY OF JUSTICE,LEGAL AID AGENCY,28/01/2016,Crime Higher,LEGAL AID FUND,ELYAS M PATEL,896022:142911135,"31,017.84 ",Legal Aid Payment Crime Higher
MINISTRY OF JUSTICE,LEGAL AID AGENCY,28/01/2016,Crime Higher,LEGAL AID FUND,SAMUEL STEIN QC,896029:142967736,"55,254.36 ",Legal Aid Payment Crime Higher
MINISTRY OF JUSTICE,LEGAL AID AGENCY,28/01/2016,Crime Higher,LEGAL AID FUND,JOHN J MCNALLY,896049:142968062,"35,179.80 ",Legal Aid Payment Crime Higher
MINISTRY OF JUSTICE,LEGAL AID AGENCY,28/01/2016,Civil Representation,LEGAL AID FUND,JAYNE A HARRILL,896138:142932834,"44,193.60 ",Legal Aid Payment Civil Representation
MINISTRY OF JUSTICE,LEGAL AID AGENCY,28/01/2016,Crime Higher,LEGAL AID FUND,WILLIAM H MOUSLEY QC,896201:142991331,"26,499.56 ",Legal Aid Payment Crime Higher
MINISTRY OF JUSTICE,LEGAL AID AGENCY,28/01/2016,Crime Higher,LEGAL AID FUND,DANIELLE O'DONOVAN,896300:142941769,"31,522.75 ",Legal Aid Payment Crime Higher
MINISTRY OF JUSTICE,LEGAL AID AGENCY,28/01/2016,Civil Representation,LEGAL AID FUND,JONATHAN A D JONES,896307:142935622,"44,368.54 ",Legal Aid Payment Civil Representation
MINISTRY OF JUSTICE,LEGAL AID AGENCY,28/01/2016,Civil Representation,LEGAL AID FUND,JONATHAN A D JONES,896307:142978827,"-45,718.21 ",Legal Aid Payment Civil Representation
MINISTRY OF JUSTICE,LEGAL AID AGENCY,28/01/2016,Crime Higher,LEGAL AID FUND,BALRAJ S BHATIA,896358:142967861,"53,242.20 ",Legal Aid Payment Crime Higher
MINISTRY OF JUSTICE,LEGAL AID AGENCY,28/01/2016,Civil Representation,LEGAL AID FUND,MERCY L M AKMAN,896365:142875989,"64,985.23 ",Legal Aid Payment Civil Representation
MINISTRY OF JUSTICE,LEGAL AID AGENCY,28/01/2016,Crime Higher,LEGAL AID FUND,HASHIM R SALMMAN,896369:142967348,"25,013.38 ",Legal Aid Payment Crime Higher
MINISTRY OF JUSTICE,LEGAL AID AGENCY,28/01/2016,Civil Representation,LEGAL AID FUND,JAMES H H TILLYARD QC,896387:142946625,"40,455.10 ",Legal Aid Payment Civil Representation
MINISTRY OF JUSTICE,LEGAL AID AGENCY,28/01/2016,Crime Higher,LEGAL AID FUND,PHILIPPA PAGE,896497:142967611,"47,931.30 ",Legal Aid Payment Crime Higher
MINISTRY OF JUSTICE,LEGAL AID AGENCY,28/01/2016,Civil Representation,LEGAL AID FUND,DOUGLAS S ALLEN,896506:142978905,"26,130.60 ",Legal Aid Payment Civil Representation
MINISTRY OF JUSTICE,LEGAL AID AGENCY,28/01/2016,Crime Higher,LEGAL AID FUND,CAROLINE T GOODWIN,896727:142968024,"40,522.01 ",Legal Aid Payment Crime Higher
MINISTRY OF JUSTICE,LEGAL AID AGENCY,28/01/2016,Crime Higher,LEGAL AID FUND,RACHEL HEDWORTH,896742:142967956,"28,992.84 ",Legal Aid Payment Crime Higher
MINISTRY OF JUSTICE,LEGAL AID AGENCY,28/01/2016,Crime Higher,LEGAL AID FUND,DI MIDDLETON,896760:142967316,"36,446.87 ",Legal Aid Payment Crime Higher
MINISTRY OF JUSTICE,LEGAL AID AGENCY,28/01/2016,Crime Higher,LEGAL AID FUND,DI MIDDLETON,896760:142967365,"-37,612.91 ",Legal Aid Payment Crime Higher
MINISTRY OF JUSTICE,LEGAL AID AGENCY,28/01/2016,Crime Higher,LEGAL AID FUND,DI MIDDLETON,896760:142967375,"43,975.31 ",Legal Aid Payment Crime Higher
MINISTRY OF JUSTICE,LEGAL AID AGENCY,28/01/2016,Legal Help,LEGAL AID FUND,WIMBLEDON SOLICITORS,896809:142978730,"26,716.00 ",Legal Aid Payment Legal Help
MINISTRY OF JUSTICE,LEGAL AID AGENCY,28/01/2016,Crime Lower,LEGAL AID FUND,CARTWRIGHT KING SOLICITORS,896814:142990064,"29,824.00 ",Legal Aid Payment Crime Lower
MINISTRY OF JUSTICE,LEGAL AID AGENCY,28/01/2016,Crime Lower,LEGAL AID FUND,SHARMA LAW SOLICITORS,896815:142990183,"26,449.00 ",Legal Aid Payment Crime Lower
MINISTRY OF JUSTICE,LEGAL AID AGENCY,28/01/2016,Crime Lower,LEGAL AID FUND,K LEGAL SOLICITORS,896823:142990180,"28,510.00 ",Legal Aid Payment Crime Lower
MINISTRY OF JUSTICE,LEGAL AID AGENCY,28/01/2016,Crime Lower,LEGAL AID FUND,WELLS BURCOMBE LLP,896833:142990126,"56,999.00 ",Legal Aid Payment Crime Lower
MINISTRY OF JUSTICE,LEGAL AID AGENCY,28/01/2016,Crime Lower,LEGAL AID FUND,NEWGATE SOLICITORS,896871:142990201,"25,500.00 ",Legal Aid Payment Crime Lower
MINISTRY OF JUSTICE,LEGAL AID AGENCY,28/01/2016,Crime Higher,LEGAL AID FUND,STEWART BEGUM SOLICITORS LLP,896895:142941224,"31,241.56 ",Legal Aid Payment Crime Higher
MINISTRY OF JUSTICE,LEGAL AID AGENCY,28/01/2016,Crime Lower,LEGAL AID FUND,G T STEWART SOLICITORS,896902:142990112,"35,575.00 ",Legal Aid Payment Crime Lower
MINISTRY OF JUSTICE,LEGAL AID AGENCY,28/01/2016,Crime Higher,LEGAL AID FUND,G T STEWART SOLICITORS,896903:142954437,"56,270.38 ",Legal Aid Payment Crime Higher
MINISTRY OF JUSTICE,LEGAL AID AGENCY,28/01/2016,Crime Lower,LEGAL AID FUND,G T STEWART SOLICITORS,896906:142990108,"30,727.00 ",Legal Aid Payment Crime Lower
MINISTRY OF JUSTICE,LEGAL AID AGENCY,28/01/2016,Crime Lower,LEGAL AID FUND,HINE SOLICITORS,896912:142990120,"39,023.00 ",Legal Aid Payment Crime Lower
MINISTRY OF JUSTICE,LEGAL AID AGENCY,28/01/2016,Crime Lower,LEGAL AID FUND,HINE SOLICITORS,896913:142990119,"79,659.00 ",Legal Aid Payment Crime Lower
MINISTRY OF JUSTICE,LEGAL AID AGENCY,28/01/2016,Crime Lower,LEGAL AID FUND,HINE SOLICITORS,896914:142990118,"30,249.00 ",Legal Aid Payment Crime Lower
MINISTRY OF JUSTICE,LEGAL AID AGENCY,28/01/2016,Crime Lower,LEGAL AID FUND,HINE SOLICITORS,896915:142990117,"46,941.00 ",Legal Aid Payment Crime Lower
MINISTRY OF JUSTICE,LEGAL AID AGENCY,28/01/2016,Crime Lower,LEGAL AID FUND,DJMS SOLICITORS LTD,896916:142989686,"34,672.00 ",Legal Aid Payment Crime Lower
MINISTRY OF JUSTICE,LEGAL AID AGENCY,28/01/2016,Crime Lower,LEGAL AID FUND,THE JOHNSON PARTNERSHIP,896922:142989351,"48,400.00 ",Legal Aid Payment Crime Lower
MINISTRY OF JUSTICE,LEGAL AID AGENCY,28/01/2016,Crime Lower,LEGAL AID FUND,SANSBURY DOUGLAS,896924:142989348,"54,000.00 ",Legal Aid Payment Crime Lower
MINISTRY OF JUSTICE,LEGAL AID AGENCY,28/01/2016,Legal Help,LEGAL AID FUND,T. A. LAW,896938:142907973,"35,452.44 ",Legal Aid Payment Legal Help
MINISTRY OF JUSTICE,LEGAL AID AGENCY,28/01/2016,Legal Help,LEGAL AID FUND,SHELTER.,896945:142907089,"31,673.12 ",Legal Aid Payment Legal Help
MINISTRY OF JUSTICE,LEGAL AID AGENCY,28/01/2016,Crime Lower,LEGAL AID FUND,WESSEX SOLICITORS CHAMBERS,896947:142989345,"60,000.00 ",Legal Aid Payment Crime Lower
MINISTRY OF JUSTICE,LEGAL AID AGENCY,28/01/2016,Crime Lower,LEGAL AID FUND,KENT DEFENCE,896948:142989342,"33,500.00 ",Legal Aid Payment Crime Lower
MINISTRY OF JUSTICE,LEGAL AID AGENCY,28/01/2016,Civil Representation,LEGAL AID FUND,G T STEWART SOLICITORS,896959:142945544,"29,014.18 ",Legal Aid Payment Civil Representation
MINISTRY OF JUSTICE,LEGAL AID AGENCY,28/01/2016,Crime Lower,LEGAL AID FUND,NUMBER ONE LAW LLP,896960:142990026,"28,509.00 ",Legal Aid Payment Crime Lower
MINISTRY OF JUSTICE,LEGAL AID AGENCY,28/01/2016,Crime Lower,LEGAL AID FUND,JSP LAW LTD,896971:142990157,"51,464.00 ",Legal Aid Payment Crime Lower
MINISTRY OF JUSTICE,LEGAL AID AGENCY,28/01/2016,Crime Lower,LEGAL AID FUND,SUSSEX DEFENCE SOLICITORS,896979:142989190,"34,000.00 ",Legal Aid Payment Crime Lower
MINISTRY OF JUSTICE,LEGAL AID AGENCY,28/01/2016,Crime Lower,LEGAL AID FUND,HENNESSY & HAMMUDI,896981:142989219,"50,000.00 ",Legal Aid Payment Crime Lower
MINISTRY OF JUSTICE,LEGAL AID AGENCY,28/01/2016,Crime Higher,LEGAL AID FUND,MORGAN BROWN CAHILL SOLICITORS,896998:142954442,"81,272.03 ",Legal Aid Payment Crime Higher
MINISTRY OF JUSTICE,LEGAL AID AGENCY,28/01/2016,Crime Lower,LEGAL AID FUND,HASKELL & CO,897006:142989872,"34,138.00 ",Legal Aid Payment Crime Lower
MINISTRY OF JUSTICE,LEGAL AID AGENCY,28/01/2016,Legal Help,LEGAL AID FUND,TRP SOLICITORS LTD,897008:142987689,"26,600.00 ",Legal Aid Payment Legal Help
MINISTRY OF JUSTICE,LEGAL AID AGENCY,28/01/2016,Crime Higher,LEGAL AID FUND,ZMS LEGAL LTD TA ZMS SOLICITORS,897009:142941139,"37,296.80 ",Legal Aid Payment Crime Higher
MINISTRY OF JUSTICE,LEGAL AID AGENCY,28/01/2016,Legal Help,LEGAL AID FUND,GUILE NICHOLAS-INC DONALD GALBRAITH & CO,897020:142987864,"73,400.00 ",Legal Aid Payment Legal Help
MINISTRY OF JUSTICE,LEGAL AID AGENCY,28/01/2016,Crime Lower,LEGAL AID FUND,M B LAW LTD,897031:142989578,"35,695.00 ",Legal Aid Payment Crime Lower
MINISTRY OF JUSTICE,LEGAL AID AGENCY,28/01/2016,Legal Help,LEGAL AID FUND,DONOVAN NEWTON SOLICITORS,897042:142988421,"26,125.00 ",Legal Aid Payment Legal Help
MINISTRY OF JUSTICE,LEGAL AID AGENCY,28/01/2016,Crime Lower,LEGAL AID FUND,CARTWRIGHT CLARK LTD,897052:142989910,"29,081.00 ",Legal Aid Payment Crime Lower
MINISTRY OF JUSTICE,LEGAL AID AGENCY,28/01/2016,Legal Help,LEGAL AID FUND,BUTLER & CO,897075:142987728,"36,500.00 ",Legal Aid Payment Legal Help
MINISTRY OF JUSTICE,LEGAL AID AGENCY,28/01/2016,Crime Lower,LEGAL AID FUND,BAXTER BROWN MCARTHUR SOLICITORS,897079:142988893,"27,700.00 ",Legal Aid Payment Crime Lower
MINISTRY OF JUSTICE,LEGAL AID AGENCY,28/01/2016,Crime Higher,LEGAL AID FUND,AMAL SOLICITORS,897097:142928730,"26,839.94 ",Legal Aid Payment Crime Higher
MINISTRY OF JUSTICE,LEGAL AID AGENCY,28/01/2016,Crime Lower,LEGAL AID FUND,SAKHI LEGAL SERVICES LTD,897100:142989470,"30,263.00 ",Legal Aid Payment Crime Lower
MINISTRY OF JUSTICE,LEGAL AID AGENCY,28/01/2016,Crime Lower,LEGAL AID FUND,MCGANNS LAW LTD,897101:142989476,"55,431.00 ",Legal Aid Payment Crime Lower
MINISTRY OF JUSTICE,LEGAL AID AGENCY,28/01/2016,Crime Higher,LEGAL AID FUND,STEPHEN LICKRISH & ASSOCIATES LTD,897102:142991604,"52,624.85 ",Legal Aid Payment Crime Higher
MINISTRY OF JUSTICE,LEGAL AID AGENCY,28/01/2016,Crime Lower,LEGAL AID FUND,ABV SOLICITORS,897107:142988908,"80,800.00 ",Legal Aid Payment Crime Lower
MINISTRY OF JUSTICE,LEGAL AID AGENCY,28/01/2016,Crime Lower,LEGAL AID FUND,HEALEY COLBON,897114:142988821,"26,100.00 ",Legal Aid Payment Crime Lower
MINISTRY OF JUSTICE,LEGAL AID AGENCY,28/01/2016,Crime Lower,LEGAL AID FUND,LAWTONS SOLICITORS LTD,897124:142988819,"45,700.00 ",Legal Aid Payment Crime Lower
MINISTRY OF JUSTICE,LEGAL AID AGENCY,28/01/2016,Crime Lower,LEGAL AID FUND,I B B SOLICITORS,897134:142988904,"98,100.00 ",Legal Aid Payment Crime Lower
MINISTRY OF JUSTICE,LEGAL AID AGENCY,28/01/2016,Crime Higher,LEGAL AID FUND,I B B SOLICITORS,897134:142991295,"73,807.90 ",Legal Aid Payment Crime Higher
MINISTRY OF JUSTICE,LEGAL AID AGENCY,28/01/2016,Crime Lower,LEGAL AID FUND,WAINWRIGHT & CUMMINS LLP,897136:142988966,"42,000.00 ",Legal Aid Payment Crime Lower
MINISTRY OF JUSTICE,LEGAL AID AGENCY,28/01/2016,Crime Lower,LEGAL AID FUND,DARRYL INGRAM & CO,897137:142988920,"27,600.00 ",Legal Aid Payment Crime Lower
MINISTRY OF JUSTICE,LEGAL AID AGENCY,28/01/2016,Legal Help,LEGAL AID FUND,PARAGON LAW LTD,897145:142988000,"40,000.00 ",Legal Aid Payment Legal Help
MINISTRY OF JUSTICE,LEGAL AID AGENCY,28/01/2016,Legal Help,LEGAL AID FUND,M H LEGAL,897147:142987984,"38,100.00 ",Legal Aid Payment Legal Help
MINISTRY OF JUSTICE,LEGAL AID AGENCY,28/01/2016,Crime Lower,LEGAL AID FUND,STERNBERG REED SOLICITORS,897161:142988928,"55,000.00 ",Legal Aid Payment Crime Lower
MINISTRY OF JUSTICE,LEGAL AID AGENCY,28/01/2016,Crime Lower,LEGAL AID FUND,BELMORES SOLICITORS LTD,897164:142989515,"35,697.00 ",Legal Aid Payment Crime Lower
MINISTRY OF JUSTICE,LEGAL AID AGENCY,28/01/2016,Crime Lower,LEGAL AID FUND,VYMAN SOLICITORS LIMITED,897181:142989864,"25,442.00 ",Legal Aid Payment Crime Lower
MINISTRY OF JUSTICE,LEGAL AID AGENCY,28/01/2016,Legal Help,LEGAL AID FUND,MTG SOLICITORS,897188:142987858,"29,000.00 ",Legal Aid Payment Legal Help
MINISTRY OF JUSTICE,LEGAL AID AGENCY,28/01/2016,Crime Higher,LEGAL AID FUND,CARTWRIGHT KING SOLICITORS,897192:142954494,"46,244.27 ",Legal Aid Payment Crime Higher
MINISTRY OF JUSTICE,LEGAL AID AGENCY,28/01/2016,Crime Lower,LEGAL AID FUND,CARTWRIGHT KING SOLICITORS,897193:142989486,"27,309.00 ",Legal Aid Payment Crime Lower
MINISTRY OF JUSTICE,LEGAL AID AGENCY,28/01/2016,Legal Help,LEGAL AID FUND,CARTWRIGHT KING SOLICITORS,897195:142988441,"56,762.00 ",Legal Aid Payment Legal Help
MINISTRY OF JUSTICE,LEGAL AID AGENCY,28/01/2016,Crime Lower,LEGAL AID FUND,CARTWRIGHT KING SOLICITORS,897195:142989482,"35,188.00 ",Legal Aid Payment Crime Lower
MINISTRY OF JUSTICE,LEGAL AID AGENCY,28/01/2016,Crime Lower,LEGAL AID FUND,HENRY'S SOLICITORS LTD,897208:142989156,"55,300.00 ",Legal Aid Payment Crime Lower
MINISTRY OF JUSTICE,LEGAL AID AGENCY,28/01/2016,Crime Lower,LEGAL AID FUND,STEVEN YOUNG & CO INC ROWBIS,897214:142989959,"26,715.00 ",Legal Aid Payment Crime Lower
MINISTRY OF JUSTICE,LEGAL AID AGENCY,28/01/2016,Crime Lower,LEGAL AID FUND,SWAIN & CO SOLICITORS LLP,897215:142989195,"38,300.00 ",Legal Aid Payment Crime Lower
MINISTRY OF JUSTICE,LEGAL AID AGENCY,28/01/2016,Legal Help,LEGAL AID FUND,SWAIN & CO SOLICITORS LLP,897216:142988020,"50,700.00 ",Legal Aid Payment Legal Help
MINISTRY OF JUSTICE,LEGAL AID AGENCY,28/01/2016,Crime Lower,LEGAL AID FUND,IRVINE THANVI NATAS SOLICITORS,897217:142988876,"50,000.00 ",Legal Aid Payment Crime Lower
MINISTRY OF JUSTICE,LEGAL AID AGENCY,28/01/2016,Legal Help,LEGAL AID FUND,GRAHAME STOWE BATESON,897236:142988262,"37,849.00 ",Legal Aid Payment Legal Help
MINISTRY OF JUSTICE,LEGAL AID AGENCY,28/01/2016,Crime Higher,LEGAL AID FUND,BJ & CO SOLICITORS LTD,897249:142941909,"28,512.60 ",Legal Aid Payment Crime Higher
MINISTRY OF JUSTICE,LEGAL AID AGENCY,28/01/2016,Crime Higher,LEGAL AID FUND,BJ & CO SOLICITORS LTD,897249:142954430,"104,332.48 ",Legal Aid Payment Crime Higher
MINISTRY OF JUSTICE,LEGAL AID AGENCY,28/01/2016,Crime Lower,LEGAL AID FUND,JOHN DELANEY & CO SOLICITORS,897260:142989078,"30,000.00 ",Legal Aid Payment Crime Lower
MINISTRY OF JUSTICE,LEGAL AID AGENCY,28/01/2016,Crime Lower,LEGAL AID FUND,JERMAN SAMUELS & PEARSON LLP,897261:142988831,"48,800.00 ",Legal Aid Payment Crime Lower
MINISTRY OF JUSTICE,LEGAL AID AGENCY,28/01/2016,Crime Lower,LEGAL AID FUND,RICHARD BODY & CO,897277:142989171,"27,000.00 ",Legal Aid Payment Crime Lower
MINISTRY OF JUSTICE,LEGAL AID AGENCY,28/01/2016,Legal Help,LEGAL AID FUND,PETER EDWARDS LAW LTD,897283:142987834,"59,200.00 ",Legal Aid Payment Legal Help
MINISTRY OF JUSTICE,LEGAL AID AGENCY,28/01/2016,Legal Help,LEGAL AID FUND,O'DONNELLS SOLICITORS,897290:142988366,"34,568.00 ",Legal Aid Payment Legal Help
MINISTRY OF JUSTICE,LEGAL AID AGENCY,28/01/2016,Crime Lower,LEGAL AID FUND,ASHLEY SMITH & CO,897297:142988939,"28,000.00 ",Legal Aid Payment Crime Lower
MINISTRY OF JUSTICE,LEGAL AID AGENCY,28/01/2016,Legal Help,LEGAL AID FUND,DUNCAN LEWIS,897299:142978617,"268,400.00 ",Legal Aid Payment Legal Help
MINISTRY OF JUSTICE,LEGAL AID AGENCY,28/01/2016,Crime Lower,LEGAL AID FUND,DUNCAN LEWIS,897299:142988926,"127,200.00 ",Legal Aid Payment Crime Lower
MINISTRY OF JUSTICE,LEGAL AID AGENCY,28/01/2016,Legal Help,LEGAL AID FUND,DUNCAN LEWIS,897300:142978614,"400,000.00 ",Legal Aid Payment Legal Help
MINISTRY OF JUSTICE,LEGAL AID AGENCY,28/01/2016,Crime Lower,LEGAL AID FUND,DUNCAN LEWIS,897300:142989603,"68,876.00 ",Legal Aid Payment Crime Lower
MINISTRY OF JUSTICE,LEGAL AID AGENCY,28/01/2016,Crime Higher,LEGAL AID FUND,LINSKILLS,897304:142928685,"78,647.67 ",Legal Aid Payment Crime Higher
MINISTRY OF JUSTICE,LEGAL AID AGENCY,28/01/2016,Legal Help,LEGAL AID FUND,LAWRENCE LUPIN SOLICITORS LTD,897308:142988302,"80,044.00 ",Legal Aid Payment Legal Help
MINISTRY OF JUSTICE,LEGAL AID AGENCY,28/01/2016,Crime Lower,LEGAL AID FUND,STEPHEN BURDON SOLICITORS,897309:142988795,"29,500.00 ",Legal Aid Payment Crime Lower
MINISTRY OF JUSTICE,LEGAL AID AGENCY,28/01/2016,Crime Higher,LEGAL AID FUND,MANN & CO SOLICITORS,897319:142942047,"55,828.38 ",Legal Aid Payment Crime Higher
MINISTRY OF JUSTICE,LEGAL AID AGENCY,28/01/2016,Crime Lower,LEGAL AID FUND,MANN & CO SOLICITORS,897319:142989287,"27,600.00 ",Legal Aid Payment Crime Lower
MINISTRY OF JUSTICE,LEGAL AID AGENCY,28/01/2016,Crime Lower,LEGAL AID FUND,DRISCOLL YOUNG SOLICITORS LIMITED,897323:142989408,"25,141.00 ",Legal Aid Payment Crime Lower
MINISTRY OF JUSTICE,LEGAL AID AGENCY,28/01/2016,Crime Lower,LEGAL AID FUND,TAYLOR HALDANE BARLEX LLP,897327:142989537,"31,525.00 ",Legal Aid Payment Crime Lower
MINISTRY OF JUSTICE,LEGAL AID AGENCY,28/01/2016,Crime Lower,LEGAL AID FUND,O'GARRA'S SOLICITORS,897329:142989080,"28,000.00 ",Legal Aid Payment Crime Lower
MINISTRY OF JUSTICE,LEGAL AID AGENCY,28/01/2016,Crime Lower,LEGAL AID FUND,OLLIERS,897333:142989818,"30,133.00 ",Legal Aid Payment Crime Lower
MINISTRY OF JUSTICE,LEGAL AID AGENCY,28/01/2016,Crime Lower,LEGAL AID FUND,BAILEY NICHOLSON GRAYSON,897339:142988867,"29,500.00 ",Legal Aid Payment Crime Lower
MINISTRY OF JUSTICE,LEGAL AID AGENCY,28/01/2016,Crime Lower,LEGAL AID FUND,GHP LEGAL,897345:142988764,"34,300.00 ",Legal Aid Payment Crime Lower
MINISTRY OF JUSTICE,LEGAL AID AGENCY,28/01/2016,Crime Lower,LEGAL AID FUND,ROY FOREMAN & CO SOLICITORS,897384:142989073,"34,000.00 ",Legal Aid Payment Crime Lower
MINISTRY OF JUSTICE,LEGAL AID AGENCY,28/01/2016,Legal Help,LEGAL AID FUND,WILSON SOLICITORS LLP,897394:142978618,"121,600.00 ",Legal Aid Payment Legal Help
MINISTRY OF JUSTICE,LEGAL AID AGENCY,28/01/2016,Crime Lower,LEGAL AID FUND,GALBRAITH BRANLEY SOLICITORS,897397:142989589,"27,746.00 ",Legal Aid Payment Crime Lower
MINISTRY OF JUSTICE,LEGAL AID AGENCY,28/01/2016,Crime Higher,LEGAL AID FUND,NOBLE SOLICITORS,897402:142941976,"37,939.63 ",Legal Aid Payment Crime Higher
MINISTRY OF JUSTICE,LEGAL AID AGENCY,28/01/2016,Crime Higher,LEGAL AID FUND,NOBLE SOLICITORS,897402:142954424,"60,310.56 ",Legal Aid Payment Crime Higher
MINISTRY OF JUSTICE,LEGAL AID AGENCY,28/01/2016,Crime Lower,LEGAL AID FUND,PURCELL PARKER LTD,897413:142989304,"85,000.00 ",Legal Aid Payment Crime Lower
MINISTRY OF JUSTICE,LEGAL AID AGENCY,28/01/2016,Crime Lower,LEGAL AID FUND,RILEY HAYES & CO,897415:142989335,"39,500.00 ",Legal Aid Payment Crime Lower
MINISTRY OF JUSTICE,LEGAL AID AGENCY,28/01/2016,Crime Lower,LEGAL AID FUND,REEDS SOLICITORS LTD,897420:142989922,"54,604.00 ",Legal Aid Payment Crime Lower
MINISTRY OF JUSTICE,LEGAL AID AGENCY,28/01/2016,Crime Lower,LEGAL AID FUND,TRANTERS CRIMINAL LAW PRACTICE,897421:142989148,"26,700.00 ",Legal Aid Payment Crime Lower
MINISTRY OF JUSTICE,LEGAL AID AGENCY,28/01/2016,Crime Lower,LEGAL AID FUND,COOMBER RICH LTD,897423:142989214,"28,800.00 ",Legal Aid Payment Crime Lower
MINISTRY OF JUSTICE,LEGAL AID AGENCY,28/01/2016,Crime Lower,LEGAL AID FUND,STEPHEN RIMMER LLP,897424:142989169,"34,900.00 ",Legal Aid Payment Crime Lower
MINISTRY OF JUSTICE,LEGAL AID AGENCY,28/01/2016,Crime Lower,LEGAL AID FUND,WILSON DEVONALD GRIFFITHS JOHN,897442:142988754,"50,000.00 ",Legal Aid Payment Crime Lower
MINISTRY OF JUSTICE,LEGAL AID AGENCY,28/01/2016,Crime Lower,LEGAL AID FUND,VHS FLETCHERS,897484:142988794,"66,500.00 ",Legal Aid Payment Crime Lower
MINISTRY OF JUSTICE,LEGAL AID AGENCY,28/01/2016,Crime Higher,LEGAL AID FUND,KEPPE ROFER,897494:142941956,"39,456.54 ",Legal Aid Payment Crime Higher
MINISTRY OF JUSTICE,LEGAL AID AGENCY,28/01/2016,Civil Representation,LEGAL AID FUND,WOLFERSTANS,897496:142935594,"146,009.55 ",Legal Aid Payment Civil Representation
MINISTRY OF JUSTICE,LEGAL AID AGENCY,28/01/2016,Crime Lower,LEGAL AID FUND,THE JOHNSON PARTNERSHIP,897510:142988793,"64,000.00 ",Legal Aid Payment Crime Lower
MINISTRY OF JUSTICE,LEGAL AID AGENCY,28/01/2016,Crime Lower,LEGAL AID FUND,THE JOHNSON PARTNERSHIP,897512:142988790,"160,000.00 ",Legal Aid Payment Crime Lower
MINISTRY OF JUSTICE,LEGAL AID AGENCY,28/01/2016,Crime Lower,LEGAL AID FUND,THE JOHNSON PARTNERSHIP,897512:142998280,"30,000.00 ",Legal Aid Payment Crime Lower
MINISTRY OF JUSTICE,LEGAL AID AGENCY,28/01/2016,Crime Lower,LEGAL AID FUND,JOSEPH HILL & CO,897558:142934325,"-33,200.00 ",Legal Aid Payment Crime Lower
MINISTRY OF JUSTICE,LEGAL AID AGENCY,28/01/2016,Crime Higher,LEGAL AID FUND,JOSEPH HILL & CO,897558:142942087,"47,865.18 ",Legal Aid Payment Crime Higher
MINISTRY OF JUSTICE,LEGAL AID AGENCY,28/01/2016,Crime Lower,LEGAL AID FUND,JOSEPH HILL & CO,897558:142988913,"31,600.00 ",Legal Aid Payment Crime Lower
MINISTRY OF JUSTICE,LEGAL AID AGENCY,28/01/2016,Crime Lower,LEGAL AID FUND,LAWRENCE & CO,897559:142988950,"35,000.00 ",Legal Aid Payment Crime Lower
MINISTRY OF JUSTICE,LEGAL AID AGENCY,28/01/2016,Legal Help,LEGAL AID FUND,PARKER RHODES HICKMOTTS,897588:142988232,"32,853.00 ",Legal Aid Payment Legal Help
MINISTRY OF JUSTICE,LEGAL AID AGENCY,28/01/2016,Crime Higher,LEGAL AID FUND,QUALITYSOLICITORS JOHN DONKIN,897590:142905348,"46,451.88 ",Legal Aid Payment Crime Higher
MINISTRY OF JUSTICE,LEGAL AID AGENCY,28/01/2016,Crime Higher,LEGAL AID FUND,QUALITYSOLICITORS JOHN DONKIN,897590:142905352,"94,648.52 ",Legal Aid Payment Crime Higher
MINISTRY OF JUSTICE,LEGAL AID AGENCY,28/01/2016,Crime Higher,LEGAL AID FUND,QUALITYSOLICITORS JOHN DONKIN,897590:142905354,"68,088.23 ",Legal Aid Payment Crime Higher
MINISTRY OF JUSTICE,LEGAL AID AGENCY,28/01/2016,Crime Higher,LEGAL AID FUND,QUALITYSOLICITORS JOHN DONKIN,897590:142905564,"245,108.93 ",Legal Aid Payment Crime Higher
MINISTRY OF JUSTICE,LEGAL AID AGENCY,28/01/2016,Crime Higher,LEGAL AID FUND,QUALITYSOLICITORS JOHN DONKIN,897590:142905567,"335,577.83 ",Legal Aid Payment Crime Higher
MINISTRY OF JUSTICE,LEGAL AID AGENCY,28/01/2016,Legal Help,LEGAL AID FUND,HOWELLS LLP,897592:142907015,"30,861.00 ",Legal Aid Payment Legal Help
MINISTRY OF JUSTICE,LEGAL AID AGENCY,28/01/2016,Legal Help,LEGAL AID FUND,HOWELLS LLP,897592:142987801,"40,000.00 ",Legal Aid Payment Legal Help
MINISTRY OF JUSTICE,LEGAL AID AGENCY,28/01/2016,Crime Lower,LEGAL AID FUND,HOWELLS LLP,897592:142989040,"60,000.00 ",Legal Aid Payment Crime Lower
MINISTRY OF JUSTICE,LEGAL AID AGENCY,28/01/2016,Civil Representation,LEGAL AID FUND,HOWELLS LLP,897592:142998051,"31,621.29 ",Legal Aid Payment Civil Representation
MINISTRY OF JUSTICE,LEGAL AID AGENCY,28/01/2016,Legal Help,LEGAL AID FUND,SWITALSKI'S LTD,897598:142988244,"53,207.00 ",Legal Aid Payment Legal Help
MINISTRY OF JUSTICE,LEGAL AID AGENCY,28/01/2016,Crime Lower,LEGAL AID FUND,COUSINS TYRER SOLICITORS,897599:142989759,"26,662.00 ",Legal Aid Payment Crime Lower
MINISTRY OF JUSTICE,LEGAL AID AGENCY,28/01/2016,Crime Lower,LEGAL AID FUND,JORDANS LLP,897605:142989724,"44,449.00 ",Legal Aid Payment Crime Lower
MINISTRY OF JUSTICE,LEGAL AID AGENCY,28/01/2016,Crime Lower,LEGAL AID FUND,TATES,897607:142989075,"31,000.00 ",Legal Aid Payment Crime Lower
MINISTRY OF JUSTICE,LEGAL AID AGENCY,28/01/2016,Crime Higher,LEGAL AID FUND,HARTHILLS,897612:142991393,"32,600.85 ",Legal Aid Payment Crime Higher
MINISTRY OF JUSTICE,LEGAL AID AGENCY,28/01/2016,Crime Lower,LEGAL AID FUND,VICKERS CHISMAN & WISHLADE,897616:142988996,"43,800.00 ",Legal Aid Payment Crime Lower
MINISTRY OF JUSTICE,LEGAL AID AGENCY,28/01/2016,Crime Lower,LEGAL AID FUND,TILLY BAILEY & IRVINE LLP,897638:142989019,"39,700.00 ",Legal Aid Payment Crime Lower
MINISTRY OF JUSTICE,LEGAL AID AGENCY,28/01/2016,Legal Help,LEGAL AID FUND,BRAR & CO SOLICITORS & ESTATE AGENTS,897646:142987966,"28,800.00 ",Legal Aid Payment Legal Help
MINISTRY OF JUSTICE,LEGAL AID AGENCY,28/01/2016,Crime Higher,LEGAL AID FUND,"SWINBURNE,SNOWBALL & JACKSON",897654:142942093,"42,638.64 ",Legal Aid Payment Crime Higher
MINISTRY OF JUSTICE,LEGAL AID AGENCY,28/01/2016,Crime Lower,LEGAL AID FUND,MICHAEL PURDON,897661:142989702,"25,885.00 ",Legal Aid Payment Crime Lower
MINISTRY OF JUSTICE,LEGAL AID AGENCY,28/01/2016,Crime Lower,LEGAL AID FUND,YARWOOD & STUBLEY,897663:142934442,"-26,700.00 ",Legal Aid Payment Crime Lower
MINISTRY OF JUSTICE,LEGAL AID AGENCY,28/01/2016,Crime Lower,LEGAL AID FUND,YARWOOD & STUBLEY,897663:142988998,"31,400.00 ",Legal Aid Payment Crime Lower
MINISTRY OF JUSTICE,LEGAL AID AGENCY,28/01/2016,Crime Lower,LEGAL AID FUND,WATSON WOODHOUSE SOLICITORS LLP,897664:142989001,"28,300.00 ",Legal Aid Payment Crime Lower
MINISTRY OF JUSTICE,LEGAL AID AGENCY,28/01/2016,Crime Lower,LEGAL AID FUND,WATSON WOODHOUSE SOLICITORS LLP,897666:142988997,"29,500.00 ",Legal Aid Payment Crime Lower
MINISTRY OF JUSTICE,LEGAL AID AGENCY,28/01/2016,Crime Lower,LEGAL AID FUND,TUCKERS SOLICITORS LLP,897669:142989147,"80,900.00 ",Legal Aid Payment Crime Lower
MINISTRY OF JUSTICE,LEGAL AID AGENCY,28/01/2016,Crime Lower,LEGAL AID FUND,TUCKERS SOLICITORS LLP,897670:142988949,"176,400.00 ",Legal Aid Payment Crime Lower
MINISTRY OF JUSTICE,LEGAL AID AGENCY,28/01/2016,Crime Lower,LEGAL AID FUND,TUCKERS SOLICITORS LLP,897671:142989305,"26,900.00 ",Legal Aid Payment Crime Lower
MINISTRY OF JUSTICE,LEGAL AID AGENCY,28/01/2016,Crime Lower,LEGAL AID FUND,STUART MILLER SOLICITORS LTD,897673:142989620,"76,520.00 ",Legal Aid Payment Crime Lower
MINISTRY OF JUSTICE,LEGAL AID AGENCY,28/01/2016,Crime Lower,LEGAL AID FUND,HORSMAN SOLICITORS LTD,897679:142989876,"29,398.00 ",Legal Aid Payment Crime Lower
MINISTRY OF JUSTICE,LEGAL AID AGENCY,28/01/2016,Crime Lower,LEGAL AID FUND,BROCKBANK CURWEN CAIN & HALL LTD,897695:142989128,"25,000.00 ",Legal Aid Payment Crime Lower
MINISTRY OF JUSTICE,LEGAL AID AGENCY,28/01/2016,Crime Lower,LEGAL AID FUND,RICHARD HASWELL SOLICITORS LLP,897699:142989700,"26,577.00 ",Legal Aid Payment Crime Lower
MINISTRY OF JUSTICE,LEGAL AID AGENCY,28/01/2016,Crime Lower,LEGAL AID FUND,LANSBURY WORTHINGTON,897701:142988859,"71,700.00 ",Legal Aid Payment Crime Lower
MINISTRY OF JUSTICE,LEGAL AID AGENCY,28/01/2016,Legal Help,LEGAL AID FUND,T V EDWARDS LLP,897702:142987847,"36,000.00 ",Legal Aid Payment Legal Help
MINISTRY OF JUSTICE,LEGAL AID AGENCY,28/01/2016,Crime Lower,LEGAL AID FUND,T V EDWARDS LLP,897702:142988927,"100,000.00 ",Legal Aid Payment Crime Lower
MINISTRY OF JUSTICE,LEGAL AID AGENCY,28/01/2016,Crime Lower,LEGAL AID FUND,HARRIS CUFFARO & NICHOLS,897705:142988824,"48,200.00 ",Legal Aid Payment Crime Lower
MINISTRY OF JUSTICE,LEGAL AID AGENCY,28/01/2016,Crime Lower,LEGAL AID FUND,VICKERS & CO INC BERRI'S SOLICITORS,897711:142989643,"35,423.00 ",Legal Aid Payment Crime Lower
MINISTRY OF JUSTICE,LEGAL AID AGENCY,28/01/2016,Crime Lower,LEGAL AID FUND,BARRETT & NELLIGAN SOLICITORS LTD,897724:142989139,"27,000.00 ",Legal Aid Payment Crime Lower
MINISTRY OF JUSTICE,LEGAL AID AGENCY,28/01/2016,Legal Help,LEGAL AID FUND,QS JACKSON CANTER LTD,897754:142988274,"25,273.00 ",Legal Aid Payment Legal Help
MINISTRY OF JUSTICE,LEGAL AID AGENCY,28/01/2016,Crime Lower,LEGAL AID FUND,HAMER CHILDS,897792:142989311,"25,000.00 ",Legal Aid Payment Crime Lower
MINISTRY OF JUSTICE,LEGAL AID AGENCY,28/01/2016,Crime Lower,LEGAL AID FUND,JOHN ONIONS SOLICITORS,897794:142989974,"56,190.00 ",Legal Aid Payment Crime Lower
MINISTRY OF JUSTICE,LEGAL AID AGENCY,28/01/2016,Civil Representation,LEGAL AID FUND,PAINTERS,897812:143000692,"26,789.26 ",Legal Aid Payment Civil Representation
MINISTRY OF JUSTICE,LEGAL AID AGENCY,28/01/2016,Legal Help,LEGAL AID FUND,BURKE NIAZI  LTD,897832:142987865,"75,000.00 ",Legal Aid Payment Legal Help
MINISTRY OF JUSTICE,LEGAL AID AGENCY,28/01/2016,Legal Help,LEGAL AID FUND,BURKE NIAZI  LTD,897832:142999007,"25,000.00 ",Legal Aid Payment Legal Help
MINISTRY OF JUSTICE,LEGAL AID AGENCY,28/01/2016,Crime Higher,LEGAL AID FUND,GOLDSTONES SOLICITORS LTD,897839:142910591,"27,019.18 ",Legal Aid Payment Crime Higher
MINISTRY OF JUSTICE,LEGAL AID AGENCY,28/01/2016,Crime Lower,LEGAL AID FUND,GOLDSTONES SOLICITORS LTD,897839:142988751,"32,400.00 ",Legal Aid Payment Crime Lower
MINISTRY OF JUSTICE,LEGAL AID AGENCY,28/01/2016,Crime Lower,LEGAL AID FUND,OWEN NASH & CO,897842:142989316,"38,000.00 ",Legal Aid Payment Crime Lower
MINISTRY OF JUSTICE,LEGAL AID AGENCY,28/01/2016,Crime Lower,LEGAL AID FUND,HODGE JONES & ALLEN LLP,897856:142989619,"69,704.00 ",Legal Aid Payment Crime Lower
MINISTRY OF JUSTICE,LEGAL AID AGENCY,28/01/2016,Legal Help,LEGAL AID FUND,J D SPICER ZEB,897858:142988303,"27,325.00 ",Legal Aid Payment Legal Help
MINISTRY OF JUSTICE,LEGAL AID AGENCY,28/01/2016,Crime Lower,LEGAL AID FUND,J D SPICER ZEB,897859:142989583,"88,665.00 ",Legal Aid Payment Crime Lower
MINISTRY OF JUSTICE,LEGAL AID AGENCY,28/01/2016,Crime Higher,LEGAL AID FUND,POWELL SPENCER AND PARTNERS,897860:142968076,"38,658.65 ",Legal Aid Payment Crime Higher
MINISTRY OF JUSTICE,LEGAL AID AGENCY,28/01/2016,Crime Lower,LEGAL AID FUND,POWELL SPENCER AND PARTNERS,897860:142988878,"42,600.00 ",Legal Aid Payment Crime Lower
MINISTRY OF JUSTICE,LEGAL AID AGENCY,28/01/2016,Legal Help,LEGAL AID FUND,CONFREYS,897923:142988185,"36,998.00 ",Legal Aid Payment Legal Help
MINISTRY OF JUSTICE,LEGAL AID AGENCY,28/01/2016,Crime Lower,LEGAL AID FUND,BISHOP & LIGHT SOLICITORS,897953:142989183,"31,500.00 ",Legal Aid Payment Crime Lower
MINISTRY OF JUSTICE,LEGAL AID AGENCY,28/01/2016,Crime Lower,LEGAL AID FUND,BRADY EASTWOOD PIERCE & STEWART,897958:142989615,"36,043.00 ",Legal Aid Payment Crime Lower
MINISTRY OF JUSTICE,LEGAL AID AGENCY,28/01/2016,Civil Representation,LEGAL AID FUND,COFFIN MEW,897968:142906790,"26,423.18 ",Legal Aid Payment Civil Representation
MINISTRY OF JUSTICE,LEGAL AID AGENCY,28/01/2016,Crime Higher,LEGAL AID FUND,FOOTNER & EWING,897981:142928553,"32,675.45 ",Legal Aid Payment Crime Higher
MINISTRY OF JUSTICE,LEGAL AID AGENCY,28/01/2016,Crime Higher,LEGAL AID FUND,BLASER MILLS,897992:142928676,"129,088.88 ",Legal Aid Payment Crime Higher
MINISTRY OF JUSTICE,LEGAL AID AGENCY,28/01/2016,Civil Representation,LEGAL AID FUND,FREEMANS SOLICITORS.,897995:142835487,"74,489.70 ",Legal Aid Payment Civil Representation
MINISTRY OF JUSTICE,LEGAL AID AGENCY,28/01/2016,Crime Lower,LEGAL AID FUND,KAIM TODNER SOLICITORS LIMITED,898003:142989566,"41,020.00 ",Legal Aid Payment Crime Lower
MINISTRY OF JUSTICE,LEGAL AID AGENCY,28/01/2016,Crime Higher,LEGAL AID FUND,PETER BONNER & CO,898010:142966793,"53,446.32 ",Legal Aid Payment Crime Higher
MINISTRY OF JUSTICE,LEGAL AID AGENCY,28/01/2016,Civil Representation,LEGAL AID FUND,OSBORNES SOLICITORS LLP,898018:137969404,"72,713.21 ",Legal Aid Payment Civil Representation
MINISTRY OF JUSTICE,LEGAL AID AGENCY,28/01/2016,Crime Higher,LEGAL AID FUND,BLACKFORDS LLP,898021:142920089,"26,182.66 ",Legal Aid Payment Crime Higher
MINISTRY OF JUSTICE,LEGAL AID AGENCY,28/01/2016,Crime Higher,LEGAL AID FUND,BLACKFORDS LLP,898021:142928663,"41,335.99 ",Legal Aid Payment Crime Higher
MINISTRY OF JUSTICE,LEGAL AID AGENCY,28/01/2016,Crime Lower,LEGAL AID FUND,BLACKFORDS LLP,898021:142989571,"39,041.00 ",Legal Aid Payment Crime Lower
MINISTRY OF JUSTICE,LEGAL AID AGENCY,28/01/2016,Crime Higher,LEGAL AID FUND,BLACKFORDS LLP,898021:143002472,"151,571.33 ",Legal Aid Payment Crime Higher
MINISTRY OF JUSTICE,LEGAL AID AGENCY,28/01/2016,Crime Lower,LEGAL AID FUND,VHS FLETCHERS,898076:142989384,"29,200.00 ",Legal Aid Payment Crime Lower
MINISTRY OF JUSTICE,LEGAL AID AGENCY,28/01/2016,Crime Lower,LEGAL AID FUND,TEESSIDE LAW LTD,898185:142990264,"32,870.00 ",Legal Aid Payment Crime Lower
MINISTRY OF JUSTICE,LEGAL AID AGENCY,28/01/2016,Crime Lower,LEGAL AID FUND,ALEXANDER BENNETT,898192:142989376,"27,000.00 ",Legal Aid Payment Crime Lower
MINISTRY OF JUSTICE,LEGAL AID AGENCY,28/01/2016,Crime Lower,LEGAL AID FUND,THE JOHNSON PARTNERSHIP,898197:142989372,"41,600.00 ",Legal Aid Payment Crime Lower
MINISTRY OF JUSTICE,LEGAL AID AGENCY,28/01/2016,Crime Lower,LEGAL AID FUND,REEDS SOLICITORS LTD,898202:142990271,"28,303.00 ",Legal Aid Payment Crime Lower
MINISTRY OF JUSTICE,LEGAL AID AGENCY,28/01/2016,Legal Help,LEGAL AID FUND,FISHER JONES GREENWOOD LLP,898229:142978720,"30,707.00 ",Legal Aid Payment Legal Help
MINISTRY OF JUSTICE,LEGAL AID AGENCY,28/01/2016,Civil Representation,LEGAL AID FUND,REBECCA FOULKES,898357:142912976,"42,768.00 ",Legal Aid Payment Civil Representation
MINISTRY OF JUSTICE,LEGAL AID AGENCY,28/01/2016,Civil Representation,LEGAL AID FUND,PAMELA SCRIVEN QC,898436:142947038,"43,456.75 ",Legal Aid Payment Civil Representation
MINISTRY OF JUSTICE,LEGAL AID AGENCY,28/01/2016,Crime Lower,LEGAL AID FUND,T S LAW LTD,898529:142989364,"25,000.00 ",Legal Aid Payment Crime Lower
MINISTRY OF JUSTICE,LEGAL AID AGENCY,28/01/2016,Crime Higher,LEGAL AID FUND,ARORA LODHI HEATH-ADVOCATE,898538:142967477,"26,233.09 ",Legal Aid Payment Crime Higher
MINISTRY OF JUSTICE,LEGAL AID AGENCY,28/01/2016,Crime Higher,LEGAL AID FUND,MORGAN CULLEN BALL LTD,898551:142954444,"89,975.11 ",Legal Aid Payment Crime Higher
MINISTRY OF JUSTICE,LEGAL AID AGENCY,28/01/2016,Crime Lower,LEGAL AID FUND,MORGAN CULLEN BALL LTD,898551:142990230,"28,001.00 ",Legal Aid Payment Crime Lower
MINISTRY OF JUSTICE,LEGAL AID AGENCY,28/01/2016,Civil Representation,LEGAL AID FUND,BARBARA M HEWSON,898680:142845284,"28,202.05 ",Legal Aid Payment Civil Representation
MINISTRY OF JUSTICE,LEGAL AID AGENCY,28/01/2016,Crime Higher,LEGAL AID FUND,NICHOLAS P VALIOS,898710:142991109,"39,308.84 ",Legal Aid Payment Crime Higher
MINISTRY OF JUSTICE,LEGAL AID AGENCY,28/01/2016,Crime Higher,LEGAL AID FUND,EDWARD HAYES LLP-ADVOCATE,898727:142954212,"26,000.52 ",Legal Aid Payment Crime Higher
MINISTRY OF JUSTICE,LEGAL AID AGENCY,28/01/2016,Crime Higher,LEGAL AID FUND,PAUL R GREANEY,898832:142991103,"27,441.10 ",Legal Aid Payment Crime Higher
MINISTRY OF JUSTICE,LEGAL AID AGENCY,28/01/2016,Crime Higher,LEGAL AID FUND,PAUL C WALKER,898836:142967220,"45,775.08 ",Legal Aid Payment Crime Higher
MINISTRY OF JUSTICE,LEGAL AID AGENCY,28/01/2016,Civil Representation,LEGAL AID FUND,SIMON W TAYLOR QC,898881:142769187,"54,037.65 ",Legal Aid Payment Civil Representation
MINISTRY OF JUSTICE,LEGAL AID AGENCY,28/01/2016,Crime Higher,LEGAL AID FUND,DAVID S HISLOP QC,898909:142911022,"30,195.18 ",Legal Aid Payment Crime Higher
MINISTRY OF JUSTICE,LEGAL AID AGENCY,28/01/2016,Crime Higher,LEGAL AID FUND,ALISON R POPLE QC,898938:142958788,"45,200.00 ",Legal Aid Payment Crime Higher
MINISTRY OF JUSTICE,LEGAL AID AGENCY,28/01/2016,Civil Representation,LEGAL AID FUND,DR MICHAEL J POWERS QC,899004:142935380,"35,295.00 ",Legal Aid Payment Civil Representation
MINISTRY OF JUSTICE,LEGAL AID AGENCY,28/01/2016,Civil Representation,LEGAL AID FUND,DR MICHAEL J POWERS QC,899004:142935769,"78,164.92 ",Legal Aid Payment Civil Representation
MINISTRY OF JUSTICE,LEGAL AID AGENCY,28/01/2016,Civil Representation,LEGAL AID FUND,DR MICHAEL J POWERS QC,899004:142978796,"-43,655.09 ",Legal Aid Payment Civil Representation
MINISTRY OF JUSTICE,LEGAL AID AGENCY,28/01/2016,Crime Higher,LEGAL AID FUND,RICHARD J PRATT QC,899030:142910918,"26,903.88 ",Legal Aid Payment Crime Higher
MINISTRY OF JUSTICE,LEGAL AID AGENCY,28/01/2016,Civil Representation,LEGAL AID FUND,RACHEL M GILLMAN,899039:142946661,"49,135.90 ",Legal Aid Payment Civil Representation
MINISTRY OF JUSTICE,LEGAL AID AGENCY,28/01/2016,Civil Representation,LEGAL AID FUND,RACHEL M GILLMAN,899039:142946662,"-43,837.20 ",Legal Aid Payment Civil Representation
MINISTRY OF JUSTICE,LEGAL AID AGENCY,28/01/2016,Crime Higher,LEGAL AID FUND,SIMON P W CHRISTIE,899073:142912448,"33,727.80 ",Legal Aid Payment Crime Higher
MINISTRY OF JUSTICE,LEGAL AID AGENCY,28/01/2016,Civil Representation,LEGAL AID FUND,HAYLEE F OBRIEN,899184:142997022,"29,145.96 ",Legal Aid Payment Civil Representation
MINISTRY OF JUSTICE,LEGAL AID AGENCY,28/01/2016,Civil Representation,LEGAL AID FUND,PAMELA WARNER,899271:142947103,"34,371.00 ",Legal Aid Payment Civil Representation
MINISTRY OF JUSTICE,LEGAL AID AGENCY,28/01/2016,Crime Higher,LEGAL AID FUND,ZAFAR ALI,899315:142991325,"49,674.22 ",Legal Aid Payment Crime Higher
MINISTRY OF JUSTICE,LEGAL AID AGENCY,28/01/2016,Crime Higher,LEGAL AID FUND,CHARLES G KNOWLES,899327:142960843,"39,945.60 ",Legal Aid Payment Crime Higher
MINISTRY OF JUSTICE,LEGAL AID AGENCY,28/01/2016,Crime Higher,LEGAL AID FUND,CHARLES G KNOWLES,899327:142960844,"26,236.20 ",Legal Aid Payment Crime Higher
MINISTRY OF JUSTICE,LEGAL AID AGENCY,28/01/2016,Civil Representation,LEGAL AID FUND,COLIN B MCCAUL,899332:142885563,"56,970.49 ",Legal Aid Payment Civil Representation
MINISTRY OF JUSTICE,LEGAL AID AGENCY,28/01/2016,Civil Representation,LEGAL AID FUND,COLIN B MCCAUL,899332:142886027,"-57,243.79 ",Legal Aid Payment Civil Representation
MINISTRY OF JUSTICE,LEGAL AID AGENCY,28/01/2016,Crime Higher,LEGAL AID FUND,KIERAN M BRAND,899366:142940929,"44,838.52 ",Legal Aid Payment Crime Higher
MINISTRY OF JUSTICE,LEGAL AID AGENCY,28/01/2016,Crime Higher,LEGAL AID FUND,PETER C E MOULSON,899473:142928323,"52,044.35 ",Legal Aid Payment Crime Higher
MINISTRY OF JUSTICE,LEGAL AID AGENCY,28/01/2016,Civil Representation,LEGAL AID FUND,CLAIRE MURDEN,899515:3000000577740002,"29,049.60 ",Legal Aid Payment Civil Representation
MINISTRY OF JUSTICE,LEGAL AID AGENCY,28/01/2016,Crime Higher,LEGAL AID FUND,DIANA ELLIS QC,899527:142953562,"30,988.56 ",Legal Aid Payment Crime Higher
MINISTRY OF JUSTICE,LEGAL AID AGENCY,28/01/2016,Crime Higher,LEGAL AID FUND,PETER L WILCOCK,899534:142927292,"32,777.88 ",Legal Aid Payment Crime Higher
MINISTRY OF JUSTICE,LEGAL AID AGENCY,28/01/2016,Crime Higher,LEGAL AID FUND,HELEN K L MALCOLM QC,899536:142966886,"27,181.73 ",Legal Aid Payment Crime Higher
MINISTRY OF JUSTICE,LEGAL AID AGENCY,28/01/2016,Legal Help,LEGAL AID FUND,SIMPSON MILLAR SOLICITORS LLP,899660:142907537,"52,825.15 ",Legal Aid Payment Legal Help
MINISTRY OF JUSTICE,LEGAL AID AGENCY,28/01/2016,Legal Help,LEGAL AID FUND,DH LAW LTD,899663:142978722,"28,038.00 ",Legal Aid Payment Legal Help
MINISTRY OF JUSTICE,LEGAL AID AGENCY,28/01/2016,Legal Help,LEGAL AID FUND,BRIGHTON HOUSING TRUST,899670:142978653,"31,192.00 ",Legal Aid Payment Legal Help
MINISTRY OF JUSTICE,LEGAL AID AGENCY,28/01/2016,Crime Lower,LEGAL AID FUND,HINE SOLICITORS,899726:142990116,"33,538.00 ",Legal Aid Payment Crime Lower
MINISTRY OF JUSTICE,LEGAL AID AGENCY,28/01/2016,Crime Lower,LEGAL AID FUND,HINE SOLICITORS,899727:142990115,"29,482.00 ",Legal Aid Payment Crime Lower
MINISTRY OF JUSTICE,LEGAL AID AGENCY,28/01/2016,Crime Lower,LEGAL AID FUND,HARRIS SOLICITORS,899740:142990135,"33,000.00 ",Legal Aid Payment Crime Lower
MINISTRY OF JUSTICE,LEGAL AID AGENCY,28/01/2016,Crime Lower,LEGAL AID FUND,"O'NEILL, WRIGHT & NASH",899741:142990039,"37,954.00 ",Legal Aid Payment Crime Lower
MINISTRY OF JUSTICE,LEGAL AID AGENCY,28/01/2016,Crime Lower,LEGAL AID FUND,REEDS SOLICITORS LTD,899747:142990077,"27,134.00 ",Legal Aid Payment Crime Lower
MINISTRY OF JUSTICE,LEGAL AID AGENCY,28/01/2016,Crime Lower,LEGAL AID FUND,HDH LAW,899762:142989352,"25,000.00 ",Legal Aid Payment Crime Lower
MINISTRY OF JUSTICE,LEGAL AID AGENCY,28/01/2016,Crime Lower,LEGAL AID FUND,LLM SOLICITORS (LONDON) LTD,899763:142990169,"43,086.00 ",Legal Aid Payment Crime Lower
MINISTRY OF JUSTICE,LEGAL AID AGENCY,28/01/2016,Crime Lower,LEGAL AID FUND,LAWTONS SOLICITORS LTD,899767:142989358,"92,000.00 ",Legal Aid Payment Crime Lower
MINISTRY OF JUSTICE,LEGAL AID AGENCY,28/01/2016,Crime Lower,LEGAL AID FUND,H P GOWER SOLICITORS,899777:142990158,"55,486.00 ",Legal Aid Payment Crime Lower
MINISTRY OF JUSTICE,LEGAL AID AGENCY,28/01/2016,Crime Higher,LEGAL AID FUND,CHRISTOPHER MANTLE & CO LTD,899781:142954425,"89,975.11 ",Legal Aid Payment Crime Higher
MINISTRY OF JUSTICE,LEGAL AID AGENCY,28/01/2016,Crime Lower,LEGAL AID FUND,M K LAW SOLICITORS LTD,899798:142990125,"61,216.00 ",Legal Aid Payment Crime Lower
MINISTRY OF JUSTICE,LEGAL AID AGENCY,28/01/2016,Crime Lower,LEGAL AID FUND,CRIMINAL DEFENCE MILTON KEYNES LTD,899805:142989205,"38,500.00 ",Legal Aid Payment Crime Lower
MINISTRY OF JUSTICE,LEGAL AID AGENCY,28/01/2016,Crime Lower,LEGAL AID FUND,GURNEY HARDEN SOLICITORS,899807:142989874,"29,364.00 ",Legal Aid Payment Crime Lower
MINISTRY OF JUSTICE,LEGAL AID AGENCY,28/01/2016,Crime Lower,LEGAL AID FUND,OSLERS SOLICITORS,899813:142988842,"29,300.00 ",Legal Aid Payment Crime Lower
MINISTRY OF JUSTICE,LEGAL AID AGENCY,28/01/2016,Crime Lower,LEGAL AID FUND,TUCKERS SOLICITORS LLP,899814:142988953,"33,000.00 ",Legal Aid Payment Crime Lower
MINISTRY OF JUSTICE,LEGAL AID AGENCY,28/01/2016,Crime Lower,LEGAL AID FUND,NOBLE SOLICITORS,899817:142912717,"30,000.00 ",Legal Aid Payment Crime Lower
MINISTRY OF JUSTICE,LEGAL AID AGENCY,28/01/2016,Crime Lower,LEGAL AID FUND,NOBLE SOLICITORS,899817:142989509,"90,365.00 ",Legal Aid Payment Crime Lower
MINISTRY OF JUSTICE,LEGAL AID AGENCY,28/01/2016,Crime Lower,LEGAL AID FUND,FISHER COWE,899822:142989520,"28,675.00 ",Legal Aid Payment Crime Lower
MINISTRY OF JUSTICE,LEGAL AID AGENCY,28/01/2016,Crime Lower,LEGAL AID FUND,WELLS BURCOMBE LLP,899823:142989502,"47,535.00 ",Legal Aid Payment Crime Lower
MINISTRY OF JUSTICE,LEGAL AID AGENCY,28/01/2016,Crime Lower,LEGAL AID FUND,ALLEN HOOLE SOLICITORS,899832:142989259,"36,000.00 ",Legal Aid Payment Crime Lower
MINISTRY OF JUSTICE,LEGAL AID AGENCY,28/01/2016,Crime Lower,LEGAL AID FUND,GWB HARTHILLS LLP,899834:142989734,"30,032.00 ",Legal Aid Payment Crime Lower
MINISTRY OF JUSTICE,LEGAL AID AGENCY,28/01/2016,Crime Lower,LEGAL AID FUND,LLOYDS PR SOLICITORS,899836:142989503,"27,812.00 ",Legal Aid Payment Crime Lower
MINISTRY OF JUSTICE,LEGAL AID AGENCY,28/01/2016,Crime Lower,LEGAL AID FUND,SHEPHERD SOLICITORS LTD,899838:142989858,"38,489.00 ",Legal Aid Payment Crime Lower
MINISTRY OF JUSTICE,LEGAL AID AGENCY,28/01/2016,Crime Lower,LEGAL AID FUND,HEALEY COLBON,899839:142988822,"42,800.00 ",Legal Aid Payment Crime Lower
MINISTRY OF JUSTICE,LEGAL AID AGENCY,28/01/2016,Crime Higher,LEGAL AID FUND,EDWARD HAYES LLP,899840:142928677,"87,403.16 ",Legal Aid Payment Crime Higher
MINISTRY OF JUSTICE,LEGAL AID AGENCY,28/01/2016,Crime Lower,LEGAL AID FUND,REEVES  & CO SOLICITORS,899862:142989875,"35,841.00 ",Legal Aid Payment Crime Lower
MINISTRY OF JUSTICE,LEGAL AID AGENCY,28/01/2016,Crime Lower,LEGAL AID FUND,GRECH GOODEN SOLICITORS LTD,899873:142989438,"36,306.00 ",Legal Aid Payment Crime Lower
MINISTRY OF JUSTICE,LEGAL AID AGENCY,28/01/2016,Crime Higher,LEGAL AID FUND,DPP LAW LTD,899875:142967575,"32,931.42 ",Legal Aid Payment Crime Higher
MINISTRY OF JUSTICE,LEGAL AID AGENCY,28/01/2016,Crime Lower,LEGAL AID FUND,JOHN FULLER & PARTNERS,899879:142989501,"30,954.00 ",Legal Aid Payment Crime Lower
MINISTRY OF JUSTICE,LEGAL AID AGENCY,28/01/2016,Crime Lower,LEGAL AID FUND,LEVY & CO SOLICITORS LLP,899882:142988832,"42,100.00 ",Legal Aid Payment Crime Lower
MINISTRY OF JUSTICE,LEGAL AID AGENCY,28/01/2016,Legal Help,LEGAL AID FUND,LAWANA & CO,899886:142987843,"79,000.00 ",Legal Aid Payment Legal Help
MINISTRY OF JUSTICE,LEGAL AID AGENCY,28/01/2016,Crime Lower,LEGAL AID FUND,GEOFF WHITE & CO,899898:142989883,"36,158.00 ",Legal Aid Payment Crime Lower
MINISTRY OF JUSTICE,LEGAL AID AGENCY,28/01/2016,Crime Lower,LEGAL AID FUND,PALMERS CRIMINAL DEFENCE SOLICITORS,899900:142989173,"33,000.00 ",Legal Aid Payment Crime Lower
MINISTRY OF JUSTICE,LEGAL AID AGENCY,28/01/2016,Crime Lower,LEGAL AID FUND,BULLIVANT LAW LTD,899902:142988869,"32,000.00 ",Legal Aid Payment Crime Lower
MINISTRY OF JUSTICE,LEGAL AID AGENCY,28/01/2016,Crime Lower,LEGAL AID FUND,LESLIE FRANKS SOLICITORS,899903:142989623,"83,953.00 ",Legal Aid Payment Crime Lower
MINISTRY OF JUSTICE,LEGAL AID AGENCY,28/01/2016,Crime Lower,LEGAL AID FUND,EBR ATTRIDGE LLP,899935:142988892,"34,200.00 ",Legal Aid Payment Crime Lower
MINISTRY OF JUSTICE,LEGAL AID AGENCY,28/01/2016,Crime Lower,LEGAL AID FUND,EBR ATTRIDGE LLP,899937:142988884,"38,400.00 ",Legal Aid Payment Crime Lower
MINISTRY OF JUSTICE,LEGAL AID AGENCY,28/01/2016,Crime Higher,LEGAL AID FUND,EBR ATTRIDGE LLP,899937:142991898,"67,726.69 ",Legal Aid Payment Crime Higher
MINISTRY OF JUSTICE,LEGAL AID AGENCY,28/01/2016,Crime Higher,LEGAL AID FUND,MOHAMMED HUSSAIN SOLICITORS,899947:142967543,"34,273.32 ",Legal Aid Payment Crime Higher
MINISTRY OF JUSTICE,LEGAL AID AGENCY,28/01/2016,Crime Higher,LEGAL AID FUND,WOODS SOLICITORS,899956:142928586,"45,693.24 ",Legal Aid Payment Crime Higher
MINISTRY OF JUSTICE,LEGAL AID AGENCY,28/01/2016,Legal Help,LEGAL AID FUND,G T STEWART SOLICITORS,899960:142978648,"31,289.00 ",Legal Aid Payment Legal Help
MINISTRY OF JUSTICE,LEGAL AID AGENCY,28/01/2016,Crime Lower,LEGAL AID FUND,G T STEWART SOLICITORS,899960:142989639,"44,254.00 ",Legal Aid Payment Crime Lower
MINISTRY OF JUSTICE,LEGAL AID AGENCY,28/01/2016,Crime Lower,LEGAL AID FUND,LHD SOLICITORS LTD,899961:142989097,"35,100.00 ",Legal Aid Payment Crime Lower
MINISTRY OF JUSTICE,LEGAL AID AGENCY,28/01/2016,Crime Higher,LEGAL AID FUND,CARTER MOORE SOLICITORS LTD,899963:142928221,"33,257.18 ",Legal Aid Payment Crime Higher
MINISTRY OF JUSTICE,LEGAL AID AGENCY,28/01/2016,Crime Higher,LEGAL AID FUND,CARTER MOORE SOLICITORS LTD,899963:142966412,"37,788.86 ",Legal Aid Payment Crime Higher
MINISTRY OF JUSTICE,LEGAL AID AGENCY,28/01/2016,Crime Higher,LEGAL AID FUND,ALSTERS KELLEY LLP,899964:142966664,"26,962.02 ",Legal Aid Payment Crime Higher
MINISTRY OF JUSTICE,LEGAL AID AGENCY,28/01/2016,Crime Lower,LEGAL AID FUND,ROWE SPARKES SOLICITORS LTD,899974:142989199,"37,500.00 ",Legal Aid Payment Crime Lower
MINISTRY OF JUSTICE,LEGAL AID AGENCY,28/01/2016,Crime Lower,LEGAL AID FUND,GUNEY CLARK & RYAN LTD CO,899975:142989609,"29,167.00 ",Legal Aid Payment Crime Lower
MINISTRY OF JUSTICE,LEGAL AID AGENCY,28/01/2016,Crime Lower,LEGAL AID FUND,CRIMINAL DEFENCE SOLICITORS,899981:142988952,"48,200.00 ",Legal Aid Payment Crime Lower
MINISTRY OF JUSTICE,LEGAL AID AGENCY,28/01/2016,Crime Lower,LEGAL AID FUND,CARRINGTONS SOLICITORS,899992:143002162,"49,000.00 ",Legal Aid Payment Crime Lower
MINISTRY OF JUSTICE,LEGAL AID AGENCY,28/01/2016,Crime Lower,LEGAL AID FUND,CARRINGTONS SOLICITORS,899992:143002164,"48,000.00 ",Legal Aid Payment Crime Lower
MINISTRY OF JUSTICE,LEGAL AID AGENCY,28/01/2016,Crime Lower,LEGAL AID FUND,CARRINGTONS SOLICITORS,899992:143002166,"47,000.00 ",Legal Aid Payment Crime Lower
MINISTRY OF JUSTICE,LEGAL AID AGENCY,28/01/2016,Crime Lower,LEGAL AID FUND,CARRINGTONS SOLICITORS,899992:143002168,"28,794.00 ",Legal Aid Payment Crime Lower
MINISTRY OF JUSTICE,LEGAL AID AGENCY,28/01/2016,Civil Representation,LEGAL AID FUND,THE FIRM LLP,899996:142912264,"85,122.81 ",Legal Aid Payment Civil Representation
MINISTRY OF JUSTICE,LEGAL AID AGENCY,28/01/2016,Civil Representation,LEGAL AID FUND,THE FIRM LLP,899996:142912265,"-85,244.31 ",Legal Aid Payment Civil Representation
MINISTRY OF JUSTICE,LEGAL AID AGENCY,28/01/2016,Crime Lower,LEGAL AID FUND,MCGRATH & CO SOLICITORS,900005:142989302,"25,000.00 ",Legal Aid Payment Crime Lower
MINISTRY OF JUSTICE,LEGAL AID AGENCY,28/01/2016,Crime Lower,LEGAL AID FUND,HOWARD & BYRNE SOLICITORS,900018:142989057,"43,000.00 ",Legal Aid Payment Crime Lower
MINISTRY OF JUSTICE,LEGAL AID AGENCY,28/01/2016,Crime Lower,LEGAL AID FUND,IAN HENERY LTD,900019:142990014,"27,378.00 ",Legal Aid Payment Crime Lower
MINISTRY OF JUSTICE,LEGAL AID AGENCY,28/01/2016,Crime Lower,LEGAL AID FUND,BIRDS SOLICITORS LTD,900021:142988889,"50,000.00 ",Legal Aid Payment Crime Lower
MINISTRY OF JUSTICE,LEGAL AID AGENCY,28/01/2016,Crime Lower,LEGAL AID FUND,SMITH PARTNERSHIP,900037:142988802,"27,000.00 ",Legal Aid Payment Crime Lower
MINISTRY OF JUSTICE,LEGAL AID AGENCY,28/01/2016,Crime Lower,LEGAL AID FUND,SMITH PARTNERSHIP,900039:142988801,"33,300.00 ",Legal Aid Payment Crime Lower
MINISTRY OF JUSTICE,LEGAL AID AGENCY,28/01/2016,Crime Lower,LEGAL AID FUND,SMITH PARTNERSHIP,900041:142989309,"28,700.00 ",Legal Aid Payment Crime Lower
MINISTRY OF JUSTICE,LEGAL AID AGENCY,28/01/2016,Crime Lower,LEGAL AID FUND,GWB HARTHILLS LLP,900047:142989732,"34,118.00 ",Legal Aid Payment Crime Lower
MINISTRY OF JUSTICE,LEGAL AID AGENCY,28/01/2016,Crime Lower,LEGAL AID FUND,BLACKWELLS,900049:142989063,"31,000.00 ",Legal Aid Payment Crime Lower
MINISTRY OF JUSTICE,LEGAL AID AGENCY,28/01/2016,Crime Lower,LEGAL AID FUND,BLACKWELLS,900049:142998052,"25,000.00 ",Legal Aid Payment Crime Lower
MINISTRY OF JUSTICE,LEGAL AID AGENCY,28/01/2016,Crime Higher,LEGAL AID FUND,DAVID GRAY LLP,900058:142928680,"129,088.88 ",Legal Aid Payment Crime Higher
MINISTRY OF JUSTICE,LEGAL AID AGENCY,28/01/2016,Legal Help,LEGAL AID FUND,DAVID GRAY LLP,900058:142988410,"33,959.00 ",Legal Aid Payment Legal Help
MINISTRY OF JUSTICE,LEGAL AID AGENCY,28/01/2016,Crime Lower,LEGAL AID FUND,DAVID GRAY LLP,900058:142989015,"27,000.00 ",Legal Aid Payment Crime Lower
MINISTRY OF JUSTICE,LEGAL AID AGENCY,28/01/2016,Crime Lower,LEGAL AID FUND,LUMB & MACGILL,900061:142989062,"35,000.00 ",Legal Aid Payment Crime Lower
MINISTRY OF JUSTICE,LEGAL AID AGENCY,28/01/2016,Crime Lower,LEGAL AID FUND,PETHERBRIDGE BASSRA SOLICITORS LTD,900063:142989745,"34,155.00 ",Legal Aid Payment Crime Lower
MINISTRY OF JUSTICE,LEGAL AID AGENCY,28/01/2016,Legal Help,LEGAL AID FUND,THALIWAL & CO LTD,900071:142988420,"34,179.00 ",Legal Aid Payment Legal Help
MINISTRY OF JUSTICE,LEGAL AID AGENCY,28/01/2016,Crime Lower,LEGAL AID FUND,INGRAMS SOLICITORS,900082:142989084,"25,900.00 ",Legal Aid Payment Crime Lower
MINISTRY OF JUSTICE,LEGAL AID AGENCY,28/01/2016,Crime Lower,LEGAL AID FUND,ALBIN & CO LTD,900084:142989218,"42,800.00 ",Legal Aid Payment Crime Lower
MINISTRY OF JUSTICE,LEGAL AID AGENCY,28/01/2016,Crime Lower,LEGAL AID FUND,OBW PERERA LTD,900087:142988847,"29,000.00 ",Legal Aid Payment Crime Lower
MINISTRY OF JUSTICE,LEGAL AID AGENCY,28/01/2016,Crime Lower,LEGAL AID FUND,S A LAW CHAMBERS SOLICITORS,900090:142988868,"65,000.00 ",Legal Aid Payment Crime Lower
MINISTRY OF JUSTICE,LEGAL AID AGENCY,28/01/2016,Crime Lower,LEGAL AID FUND,USMANI KING LTD,900095:142989507,"39,849.00 ",Legal Aid Payment Crime Lower
MINISTRY OF JUSTICE,LEGAL AID AGENCY,28/01/2016,Legal Help,LEGAL AID FUND,TURPIN & MILLER LLP,900096:142988471,"35,890.00 ",Legal Aid Payment Legal Help
MINISTRY OF JUSTICE,LEGAL AID AGENCY,28/01/2016,Legal Help,LEGAL AID FUND,COVENTRY LAW CENTRE LTD,900108:142988080,"25,420.00 ",Legal Aid Payment Legal Help
MINISTRY OF JUSTICE,LEGAL AID AGENCY,28/01/2016,Crime Lower,LEGAL AID FUND,HUMPHRYS AND CO,900121:142988765,"30,500.00 ",Legal Aid Payment Crime Lower
MINISTRY OF JUSTICE,LEGAL AID AGENCY,28/01/2016,Crime Lower,LEGAL AID FUND,CROWE HUMBLE WESENCRAFT,900130:142989017,"61,700.00 ",Legal Aid Payment Crime Lower
MINISTRY OF JUSTICE,LEGAL AID AGENCY,28/01/2016,Crime Lower,LEGAL AID FUND,CLARKE KIERNAN LLP,900145:142989868,"36,151.00 ",Legal Aid Payment Crime Lower
MINISTRY OF JUSTICE,LEGAL AID AGENCY,28/01/2016,Crime Lower,LEGAL AID FUND,NEEDHAM POULIER LTD,900147:142989652,"26,828.00 ",Legal Aid Payment Crime Lower
MINISTRY OF JUSTICE,LEGAL AID AGENCY,28/01/2016,Crime Lower,LEGAL AID FUND,ACA LAW LTD,900151:142989600,"32,822.00 ",Legal Aid Payment Crime Lower
MINISTRY OF JUSTICE,LEGAL AID AGENCY,28/01/2016,Crime Lower,LEGAL AID FUND,DPP LAW LTD,900157:142988907,"35,500.00 ",Legal Aid Payment Crime Lower
MINISTRY OF JUSTICE,LEGAL AID AGENCY,28/01/2016,Crime Lower,LEGAL AID FUND,WALTERS & PLASKITT-INC LESLIE DODD & CO,900168:142989294,"26,400.00 ",Legal Aid Payment Crime Lower
MINISTRY OF JUSTICE,LEGAL AID AGENCY,28/01/2016,Crime Higher,LEGAL AID FUND,AMOSU ROBINSHAW,900176:142954071,"67,886.75 ",Legal Aid Payment Crime Higher
MINISTRY OF JUSTICE,LEGAL AID AGENCY,28/01/2016,Crime Lower,LEGAL AID FUND,BOND JOSEPH,900178:142989879,"43,130.00 ",Legal Aid Payment Crime Lower
MINISTRY OF JUSTICE,LEGAL AID AGENCY,28/01/2016,Crime Higher,LEGAL AID FUND,FORBES SOLICITORS,900193:142954427,"86,943.73 ",Legal Aid Payment Crime Higher
MINISTRY OF JUSTICE,LEGAL AID AGENCY,28/01/2016,Crime Lower,LEGAL AID FUND,FORBES SOLICITORS,900193:142989124,"28,400.00 ",Legal Aid Payment Crime Lower
MINISTRY OF JUSTICE,LEGAL AID AGENCY,28/01/2016,Crime Lower,LEGAL AID FUND,FORBES SOLICITORS,900194:142989123,"26,800.00 ",Legal Aid Payment Crime Lower
MINISTRY OF JUSTICE,LEGAL AID AGENCY,28/01/2016,Crime Higher,LEGAL AID FUND,FORBES SOLICITORS,900195:142941915,"53,120.71 ",Legal Aid Payment Crime Higher
MINISTRY OF JUSTICE,LEGAL AID AGENCY,28/01/2016,Crime Lower,LEGAL AID FUND,FORBES SOLICITORS,900195:142989121,"31,200.00 ",Legal Aid Payment Crime Lower
MINISTRY OF JUSTICE,LEGAL AID AGENCY,28/01/2016,Legal Help,LEGAL AID FUND,LISA MARIE MCNULTY SOLICITOR,900205:142988367,"28,361.00 ",Legal Aid Payment Legal Help
MINISTRY OF JUSTICE,LEGAL AID AGENCY,28/01/2016,Crime Higher,LEGAL AID FUND,T S LAW LTD,900209:142911378,"30,246.78 ",Legal Aid Payment Crime Higher
MINISTRY OF JUSTICE,LEGAL AID AGENCY,28/01/2016,Crime Higher,LEGAL AID FUND,T S LAW LTD,900209:142911390,"49,909.69 ",Legal Aid Payment Crime Higher
MINISTRY OF JUSTICE,LEGAL AID AGENCY,28/01/2016,Crime Lower,LEGAL AID FUND,T S LAW LTD,900209:142988929,"25,000.00 ",Legal Aid Payment Crime Lower
MINISTRY OF JUSTICE,LEGAL AID AGENCY,28/01/2016,Crime Lower,LEGAL AID FUND,SJ LAW SOLICITORS,900212:142989591,"46,227.00 ",Legal Aid Payment Crime Lower
MINISTRY OF JUSTICE,LEGAL AID AGENCY,28/01/2016,Crime Lower,LEGAL AID FUND,DALTON HOLMES GRAY,900217:142989631,"30,962.00 ",Legal Aid Payment Crime Lower
MINISTRY OF JUSTICE,LEGAL AID AGENCY,28/01/2016,Crime Lower,LEGAL AID FUND,RICHARDSON SOLICITORS,900218:142989186,"27,700.00 ",Legal Aid Payment Crime Lower
MINISTRY OF JUSTICE,LEGAL AID AGENCY,28/01/2016,Crime Higher,LEGAL AID FUND,ELITE SOLICITORS,900220:142911076,"52,704.13 ",Legal Aid Payment Crime Higher
MINISTRY OF JUSTICE,LEGAL AID AGENCY,28/01/2016,Crime Lower,LEGAL AID FUND,MCGREGOR'S SOLICITORS,900224:142989970,"25,763.00 ",Legal Aid Payment Crime Lower
MINISTRY OF JUSTICE,LEGAL AID AGENCY,28/01/2016,Crime Higher,LEGAL AID FUND,FARADAYS SOLICITORS LTD,900227:142927794,"32,554.20 ",Legal Aid Payment Crime Higher
MINISTRY OF JUSTICE,LEGAL AID AGENCY,28/01/2016,Crime Lower,LEGAL AID FUND,BOOTS STARKE GOACHER SOLICITORS,900257:142989893,"29,388.00 ",Legal Aid Payment Crime Lower
MINISTRY OF JUSTICE,LEGAL AID AGENCY,28/01/2016,Crime Lower,LEGAL AID FUND,JAMES MURRAY SOLICITORS,900268:142989666,"33,047.00 ",Legal Aid Payment Crime Lower
MINISTRY OF JUSTICE,LEGAL AID AGENCY,28/01/2016,Civil Representation,LEGAL AID FUND,COOPER NIMMO LIMITED,900269:3000000265530012,"28,288.57 ",Legal Aid Payment Civil Representation
MINISTRY OF JUSTICE,LEGAL AID AGENCY,28/01/2016,Crime Lower,LEGAL AID FUND,KIRWANS,900271:142989663,"51,622.00 ",Legal Aid Payment Crime Lower
MINISTRY OF JUSTICE,LEGAL AID AGENCY,28/01/2016,Legal Help,LEGAL AID FUND,BINDMANS LLP,900272:142987873,"36,500.00 ",Legal Aid Payment Legal Help
MINISTRY OF JUSTICE,LEGAL AID AGENCY,28/01/2016,Crime Lower,LEGAL AID FUND,BURTON COPELAND LLP,900289:142989857,"27,376.00 ",Legal Aid Payment Crime Lower
MINISTRY OF JUSTICE,LEGAL AID AGENCY,28/01/2016,Legal Help,LEGAL AID FUND,RMNJ SOLICITORS,900318:142988271,"47,445.00 ",Legal Aid Payment Legal Help
MINISTRY OF JUSTICE,LEGAL AID AGENCY,28/01/2016,Crime Lower,LEGAL AID FUND,RMNJ SOLICITORS,900318:142989662,"28,028.00 ",Legal Aid Payment Crime Lower
MINISTRY OF JUSTICE,LEGAL AID AGENCY,28/01/2016,Crime Lower,LEGAL AID FUND,THE CASTLE PARTNERSHIP,900332:142989178,"29,000.00 ",Legal Aid Payment Crime Lower
MINISTRY OF JUSTICE,LEGAL AID AGENCY,28/01/2016,Crime Higher,LEGAL AID FUND,POOLE ALCOCK LLP,900337:142927141,"32,328.59 ",Legal Aid Payment Crime Higher
MINISTRY OF JUSTICE,LEGAL AID AGENCY,28/01/2016,Crime Lower,LEGAL AID FUND,POOLE ALCOCK LLP,900337:142989110,"35,000.00 ",Legal Aid Payment Crime Lower
MINISTRY OF JUSTICE,LEGAL AID AGENCY,28/01/2016,Civil Representation,LEGAL AID FUND,HEPBURN DELANEY,900344:141802753,"44,527.56 ",Legal Aid Payment Civil Representation
MINISTRY OF JUSTICE,LEGAL AID AGENCY,28/01/2016,Civil Representation,LEGAL AID FUND,HEPBURN DELANEY,900344:142931906,"-29,764.80 ",Legal Aid Payment Civil Representation
MINISTRY OF JUSTICE,LEGAL AID AGENCY,28/01/2016,Crime Lower,LEGAL AID FUND,FRASER DAWBARNS LLP,900359:142988836,"30,500.00 ",Legal Aid Payment Crime Lower
MINISTRY OF JUSTICE,LEGAL AID AGENCY,28/01/2016,Crime Higher,LEGAL AID FUND,FAVELL SMITH & LAWSON,900390:142911499,"29,447.85 ",Legal Aid Payment Crime Higher
MINISTRY OF JUSTICE,LEGAL AID AGENCY,28/01/2016,Crime Lower,LEGAL AID FUND,ROBERTSON'S SOLICITORS,900391:142989056,"32,100.00 ",Legal Aid Payment Crime Lower
MINISTRY OF JUSTICE,LEGAL AID AGENCY,28/01/2016,Crime Lower,LEGAL AID FUND,BHATIA BEST LTD,900408:142988777,"41,900.00 ",Legal Aid Payment Crime Lower
MINISTRY OF JUSTICE,LEGAL AID AGENCY,28/01/2016,Crime Lower,LEGAL AID FUND,BHATIA BEST LTD,900409:142988775,"28,600.00 ",Legal Aid Payment Crime Lower
MINISTRY OF JUSTICE,LEGAL AID AGENCY,28/01/2016,Crime Lower,LEGAL AID FUND,BHATIA BEST LTD,900410:142988773,"100,000.00 ",Legal Aid Payment Crime Lower
MINISTRY OF JUSTICE,LEGAL AID AGENCY,28/01/2016,Crime Lower,LEGAL AID FUND,RICHARD GRIFFITHS & CO,900416:142989963,"30,745.00 ",Legal Aid Payment Crime Lower
MINISTRY OF JUSTICE,LEGAL AID AGENCY,28/01/2016,Crime Lower,LEGAL AID FUND,WALKER LAHIVE,900422:142989938,"29,079.00 ",Legal Aid Payment Crime Lower
MINISTRY OF JUSTICE,LEGAL AID AGENCY,28/01/2016,Crime Lower,LEGAL AID FUND,ALLEN HOOLE SOLICITORS,900426:142989248,"43,600.00 ",Legal Aid Payment Crime Lower
MINISTRY OF JUSTICE,LEGAL AID AGENCY,28/01/2016,Crime Lower,LEGAL AID FUND,NORRIE WAITE & SLATER,900448:142989042,"25,900.00 ",Legal Aid Payment Crime Lower
MINISTRY OF JUSTICE,LEGAL AID AGENCY,28/01/2016,Legal Help,LEGAL AID FUND,HUNT & COOMBS LLP,900463:142987771,"33,900.00 ",Legal Aid Payment Legal Help
MINISTRY OF JUSTICE,LEGAL AID AGENCY,28/01/2016,Crime Lower,LEGAL AID FUND,HUNT & COOMBS LLP,900463:142988850,"26,700.00 ",Legal Aid Payment Crime Lower
MINISTRY OF JUSTICE,LEGAL AID AGENCY,28/01/2016,Crime Lower,LEGAL AID FUND,TAYLOR STREET SOLICITORS LLP,900492:142989175,"110,000.00 ",Legal Aid Payment Crime Lower
MINISTRY OF JUSTICE,LEGAL AID AGENCY,28/01/2016,Civil Representation,LEGAL AID FUND,CLOSE THORNTON LLP,900495:142906743,"30,022.35 ",Legal Aid Payment Civil Representation
MINISTRY OF JUSTICE,LEGAL AID AGENCY,28/01/2016,Civil Representation,LEGAL AID FUND,CLOSE THORNTON LLP,900495:142906744,"-29,796.35 ",Legal Aid Payment Civil Representation
MINISTRY OF JUSTICE,LEGAL AID AGENCY,28/01/2016,Crime Lower,LEGAL AID FUND,PAUL J WATSON SOLICITOR,900516:142988999,"27,000.00 ",Legal Aid Payment Crime Lower
MINISTRY OF JUSTICE,LEGAL AID AGENCY,28/01/2016,Crime Lower,LEGAL AID FUND,GEOFFREY FORRESTER & CO,900520:142989010,"35,100.00 ",Legal Aid Payment Crime Lower
MINISTRY OF JUSTICE,LEGAL AID AGENCY,28/01/2016,Civil Representation,LEGAL AID FUND,ROW & SCOTT LTD,900524:142885190,"45,288.66 ",Legal Aid Payment Civil Representation
MINISTRY OF JUSTICE,LEGAL AID AGENCY,28/01/2016,Crime Lower,LEGAL AID FUND,RUSSELL & RUSSELL SOLICITORS,900569:142989775,"37,522.00 ",Legal Aid Payment Crime Lower
MINISTRY OF JUSTICE,LEGAL AID AGENCY,28/01/2016,Crime Higher,LEGAL AID FUND,DONALD RACE & NEWTON,900573:142967170,"29,664.55 ",Legal Aid Payment Crime Higher
MINISTRY OF JUSTICE,LEGAL AID AGENCY,28/01/2016,Legal Help,LEGAL AID FUND,FADIGA & CO LTD,900575:142988291,"41,567.00 ",Legal Aid Payment Legal Help
MINISTRY OF JUSTICE,LEGAL AID AGENCY,28/01/2016,Legal Help,LEGAL AID FUND,THOMPSON & CO,900576:142987852,"27,300.00 ",Legal Aid Payment Legal Help
MINISTRY OF JUSTICE,LEGAL AID AGENCY,28/01/2016,Crime Lower,LEGAL AID FUND,STEVENS SOLICITORS,900586:142989297,"28,000.00 ",Legal Aid Payment Crime Lower
MINISTRY OF JUSTICE,LEGAL AID AGENCY,28/01/2016,Crime Lower,LEGAL AID FUND,STEVENS SOLICITORS,900588:142989291,"57,000.00 ",Legal Aid Payment Crime Lower
MINISTRY OF JUSTICE,LEGAL AID AGENCY,28/01/2016,Crime Lower,LEGAL AID FUND,STEVENS SOLICITORS,900589:142989290,"53,700.00 ",Legal Aid Payment Crime Lower
MINISTRY OF JUSTICE,LEGAL AID AGENCY,28/01/2016,Crime Higher,LEGAL AID FUND,MSB LAW LLP,900594:142928041,"55,493.12 ",Legal Aid Payment Crime Higher
MINISTRY OF JUSTICE,LEGAL AID AGENCY,28/01/2016,Crime Lower,LEGAL AID FUND,OLIVER D'SA SOLICITORS,900616:142989465,"32,633.00 ",Legal Aid Payment Crime Lower
MINISTRY OF JUSTICE,LEGAL AID AGENCY,28/01/2016,Crime Lower,LEGAL AID FUND,ROBERT LIZAR,900633:142989152,"35,000.00 ",Legal Aid Payment Crime Lower
MINISTRY OF JUSTICE,LEGAL AID AGENCY,28/01/2016,Crime Lower,LEGAL AID FUND,STEPHENSONS SOLICITORS LLP,900638:142989795,"65,797.00 ",Legal Aid Payment Crime Lower
MINISTRY OF JUSTICE,LEGAL AID AGENCY,28/01/2016,Crime Lower,LEGAL AID FUND,STOCK MORAN & SWALWELL,900647:142989094,"35,900.00 ",Legal Aid Payment Crime Lower
MINISTRY OF JUSTICE,LEGAL AID AGENCY,28/01/2016,Civil Representation,LEGAL AID FUND,THE WATSON RAMSBOTTOM LIMITED,900656:142960850,"27,352.42 ",Legal Aid Payment Civil Representation
MINISTRY OF JUSTICE,LEGAL AID AGENCY,28/01/2016,Crime Lower,LEGAL AID FUND,SMITH & DAWSON,900673:142989274,"32,900.00 ",Legal Aid Payment Crime Lower
MINISTRY OF JUSTICE,LEGAL AID AGENCY,28/01/2016,Legal Help,LEGAL AID FUND,BARNES HARRILD & DYER,900677:142988294,"26,959.00 ",Legal Aid Payment Legal Help
MINISTRY OF JUSTICE,LEGAL AID AGENCY,28/01/2016,Civil Representation,LEGAL AID FUND,FISHER MEREDITH LLP,900679:142921478,"26,267.90 ",Legal Aid Payment Civil Representation
MINISTRY OF JUSTICE,LEGAL AID AGENCY,28/01/2016,Crime Lower,LEGAL AID FUND,MCMILLAN WILLIAMS SOLICITORS LTD,900681:142988901,"51,100.00 ",Legal Aid Payment Crime Lower
MINISTRY OF JUSTICE,LEGAL AID AGENCY,28/01/2016,Civil Representation,LEGAL AID FUND,MCMILLAN WILLIAMS SOLICITORS LTD,900682:142980116,"29,110.00 ",Legal Aid Payment Civil Representation
MINISTRY OF JUSTICE,LEGAL AID AGENCY,28/01/2016,Crime Lower,LEGAL AID FUND,MCMILLAN WILLIAMS SOLICITORS LTD,900682:142988899,"25,000.00 ",Legal Aid Payment Crime Lower
MINISTRY OF JUSTICE,LEGAL AID AGENCY,28/01/2016,Civil Representation,LEGAL AID FUND,FMW LAW LTD,900683:141974906,"25,660.06 ",Legal Aid Payment Civil Representation
MINISTRY OF JUSTICE,LEGAL AID AGENCY,28/01/2016,Crime Lower,LEGAL AID FUND,FMW LAW LTD,900683:142988858,"47,000.00 ",Legal Aid Payment Crime Lower
MINISTRY OF JUSTICE,LEGAL AID AGENCY,28/01/2016,Civil Representation,LEGAL AID FUND,GRAHAM EVANS & PARTNERS LLP,900708:142873273,"25,026.00 ",Legal Aid Payment Civil Representation
MINISTRY OF JUSTICE,LEGAL AID AGENCY,28/01/2016,Crime Lower,LEGAL AID FUND,GRAHAM EVANS & PARTNERS LLP,900708:142988752,"31,900.00 ",Legal Aid Payment Crime Lower
MINISTRY OF JUSTICE,LEGAL AID AGENCY,28/01/2016,Civil Representation,LEGAL AID FUND,DAVID PLAYFORD & CO,900726:142849489,"39,246.86 ",Legal Aid Payment Civil Representation
MINISTRY OF JUSTICE,LEGAL AID AGENCY,28/01/2016,Civil Representation,LEGAL AID FUND,J M WILSON SOLICITORS LLP,900740:143000911,"37,500.00 ",Legal Aid Payment Civil Representation
MINISTRY OF JUSTICE,LEGAL AID AGENCY,28/01/2016,Legal Help,LEGAL AID FUND,QUALITY SOLICITORS CMHT,900741:142988073,"58,956.00 ",Legal Aid Payment Legal Help
MINISTRY OF JUSTICE,LEGAL AID AGENCY,28/01/2016,Crime Lower,LEGAL AID FUND,KRISTINA HARRISON SOLICITORS,900748:142989853,"27,023.00 ",Legal Aid Payment Crime Lower
MINISTRY OF JUSTICE,LEGAL AID AGENCY,28/01/2016,Crime Higher,LEGAL AID FUND,C R BURTON & CO,900749:142928767,"25,830.11 ",Legal Aid Payment Crime Higher
MINISTRY OF JUSTICE,LEGAL AID AGENCY,28/01/2016,Crime Lower,LEGAL AID FUND,ROSS SOLICITORS LTD,900761:142989263,"35,000.00 ",Legal Aid Payment Crime Lower
MINISTRY OF JUSTICE,LEGAL AID AGENCY,28/01/2016,Civil Representation,LEGAL AID FUND,DAVIS SOLICITORS LLP,900781:142811820,"26,975.96 ",Legal Aid Payment Civil Representation
MINISTRY OF JUSTICE,LEGAL AID AGENCY,28/01/2016,Crime Lower,LEGAL AID FUND,BOBBETTS MACKAN,900790:142989245,"44,000.00 ",Legal Aid Payment Crime Lower
MINISTRY OF JUSTICE,LEGAL AID AGENCY,28/01/2016,Legal Help,LEGAL AID FUND,PICKUP & SCOTT,900805:142988459,"26,079.00 ",Legal Aid Payment Legal Help
MINISTRY OF JUSTICE,LEGAL AID AGENCY,28/01/2016,Crime Lower,LEGAL AID FUND,RODNEY WARREN & CO LTD,900809:142989166,"31,000.00 ",Legal Aid Payment Crime Lower
MINISTRY OF JUSTICE,LEGAL AID AGENCY,28/01/2016,Crime Lower,LEGAL AID FUND,MCSORLEY LEWIS LAW LTD,900844:142988756,"25,000.00 ",Legal Aid Payment Crime Lower
MINISTRY OF JUSTICE,LEGAL AID AGENCY,28/01/2016,Crime Lower,LEGAL AID FUND,THOMAS BOYD WHYTE,900847:142989582,"42,966.00 ",Legal Aid Payment Crime Lower
MINISTRY OF JUSTICE,LEGAL AID AGENCY,28/01/2016,Crime Lower,LEGAL AID FUND,"GAMMON,PIERCY & GAIGER",900853:142989901,"30,320.00 ",Legal Aid Payment Crime Lower
MINISTRY OF JUSTICE,LEGAL AID AGENCY,28/01/2016,Crime Higher,LEGAL AID FUND,ALDRIDGE BROWNLEE SOLICITORS LLP,900857:142954433,"98,955.93 ",Legal Aid Payment Crime Higher
MINISTRY OF JUSTICE,LEGAL AID AGENCY,28/01/2016,Legal Help,LEGAL AID FUND,IRVING & CO,900865:142988325,"32,373.00 ",Legal Aid Payment Legal Help
MINISTRY OF JUSTICE,LEGAL AID AGENCY,28/01/2016,Crime Lower,LEGAL AID FUND,SAUNDERS SOLICITORS LTD,900871:142988946,"25,700.00 ",Legal Aid Payment Crime Lower
MINISTRY OF JUSTICE,LEGAL AID AGENCY,28/01/2016,Crime Higher,LEGAL AID FUND,IMRAN KHAN & PARTNERS,900875:142991781,"38,658.65 ",Legal Aid Payment Crime Higher
MINISTRY OF JUSTICE,LEGAL AID AGENCY,28/01/2016,Legal Help,LEGAL AID FUND,AASKELLS SOLICITORS & ADVOCATES,900878:142988305,"39,225.00 ",Legal Aid Payment Legal Help
MINISTRY OF JUSTICE,LEGAL AID AGENCY,28/01/2016,Crime Higher,LEGAL AID FUND,SLATER & GORDON (UK) LLP,900880:142928673,"86,123.21 ",Legal Aid Payment Crime Higher
MINISTRY OF JUSTICE,LEGAL AID AGENCY,28/01/2016,Crime Higher,LEGAL AID FUND,HARBANS SINGH & CO,900886:142942247,"72,132.24 ",Legal Aid Payment Crime Higher
MINISTRY OF JUSTICE,LEGAL AID AGENCY,28/01/2016,Crime Lower,LEGAL AID FUND,MARTIN MURRAY & ASSOCIATES,900893:142989914,"25,905.00 ",Legal Aid Payment Crime Lower
MINISTRY OF JUSTICE,LEGAL AID AGENCY,28/01/2016,Crime Lower,LEGAL AID FUND,MARTIN MURRAY & ASSOCIATES,900894:142989575,"57,587.00 ",Legal Aid Payment Crime Lower
MINISTRY OF JUSTICE,LEGAL AID AGENCY,28/01/2016,Crime Higher,LEGAL AID FUND,SONN MACMILLAN WALKER LTD,900899:142928662,"67,845.98 ",Legal Aid Payment Crime Higher
MINISTRY OF JUSTICE,LEGAL AID AGENCY,28/01/2016,Crime Lower,LEGAL AID FUND,SONN MACMILLAN WALKER LTD,900899:142988863,"45,000.00 ",Legal Aid Payment Crime Lower
MINISTRY OF JUSTICE,LEGAL AID AGENCY,28/01/2016,Crime Lower,LEGAL AID FUND,NELSON GUEST & PARTNERS,900902:142988910,"54,600.00 ",Legal Aid Payment Crime Lower
MINISTRY OF JUSTICE,LEGAL AID AGENCY,28/01/2016,Crime Higher,LEGAL AID FUND,CLAUDE HORNBY & COX,900903:142928692,"44,301.07 ",Legal Aid Payment Crime Higher
MINISTRY OF JUSTICE,LEGAL AID AGENCY,28/01/2016,Crime Lower,LEGAL AID FUND,MARTYN HEWETT,900908:142989172,"33,900.00 ",Legal Aid Payment Crime Lower
MINISTRY OF JUSTICE,LEGAL AID AGENCY,28/01/2016,Crime Lower,LEGAL AID FUND,LIONEL BLACKMAN SOLICITORS,900915:142989174,"26,400.00 ",Legal Aid Payment Crime Lower
